{"text_format":"1","workbook":"xlsx","n_sheets":9,"sheets":["Deckblatt","Zeitplan","Personalkosten","Sachkosten","Gemein+Nebenkosten_Erlöse","Durchführungsbericht","Kosten_gesamt","Unterschrift","Erläuterungen"],"not_rendered":{"charts":0,"images":23,"macros":1,"external_links":0,"defined_names":28,"comments":3,"pivot_tables":0},"unopened":[],"bounds":{"document_bytes":16777216,"sheet_cells":100000,"rows_first":2000,"rows_last":500,"rows_between":2000,"halvings":0,"cell_chars":16384,"cell_head_chars":4096},"cells_cut":0,"cells_raw":0,"read":"whole","date_system":"1900"}

{"sheet":"Deckblatt","index":0,"n_rows":59,"n_cols":13,"rows_kept":59,"cut":false,"hidden":false,"merged":[[7,1,7,2],[8,1,8,2],[4,1,4,2],[5,1,5,2],[5,4,5,7],[6,1,6,2],[33,2,33,8],[37,7,37,8],[14,1,14,9],[16,7,16,8],[20,1,20,8],[31,2,31,8],[23,2,23,4],[35,2,35,8],[37,2,37,4],[58,3,58,4],[39,2,39,4],[49,1,49,8],[52,2,52,8],[54,2,54,8],[44,2,44,4],[44,6,44,8]]}
[]
[]
[]
[null,null,null,null,null,"Arbeitsmarktservice"]
[null,null,null,null,null,"Österreich"]
[null,"Eingang:          "]
[null,"Journal Nr.:",null,null," "]
[null,"BTR-Nummer/Kreditor:"]
[null,"Geschäftsziel:"]
[]
[]
[]
[]
[]
[null,"BM Abrechnung ohne Wettbewerb 04.02\n\nFORMULAR ZUR ABRECHNUNG VON BILDUNGSMASSNAHMEN\nIM AUFTRAG DES AMS\n"]
[]
[null,"Die Abrechnung wird aufgrund der Durchführung von Maßnahmen für das AMS "]
[null,null,null,null,null,null,null,null,null,null,null,null,"ff"]
[null,"für folgendes Projekt / folgende Maßnahme erstellt:"]
[]
[]
[]
[]
[null,"Projektnummer:"]
[]
[null,"Gesamtkosten der Maßnahme:",null,null,null,null,null,"€ ",{"$f":"Kosten_gesamt!G65","v":0}]
[]
[null,"Vom AMS bewilligte Kosten gemäß Auftragsschreiben:",null,null,null,null,null,"€ "]
[]
[null,"Bieter / Schulungsträger:"]
[]
[null,"Name / Firma:"]
[]
[null,"Adresse:"]
[]
[null,"Kontaktperson:"]
[]
[null,"Telefon:",null,null,null,null,"Fax:"]
[]
[null,"E-Mail:"]
[]
[]
[null,"Bankverbindung:"]
[]
[null,"IBAN:"]
[]
[]
[]
[null,"Der Bieter ist vorsteuerabzugsberechtigt:",null,null,"nein"]
[null,"Die finanzielle Leistung des AMS  ist kein Entgelt im Sinne des Umsatzsteuergesetzes; es ist daher keine USt. geltend zu machen! Alle Kostenangaben erfolgen in Euro. "]
[null,"Maßnahmenort:"]
[]
[null,"Adresse: "]
[]
[null,"RGS:"]
[]
[null,"Durchführungszeitraum / Maßnahmendauer:"]
[]
[null,"Maßnahmenbeginn: ",null,null,null,null,null,"Maßnahmenende:  "]

{"sheet":"Zeitplan","index":1,"n_rows":299,"n_cols":25,"rows_kept":299,"cut":false,"hidden":false,"merged":[[34,0,34,1],[34,6,34,7],[4,3,4,12],[6,3,6,12],[41,5,41,7],[35,6,35,7],[36,6,36,7]]}
[]
[]
[]
[]
[null,null,"Bieter / Schulungsträger:",{"$f":"IF(Bewerber=0,\"\",Bewerber)","v":""}]
[]
[null,null,"Bezeichnung der Maßnahme:",{"$f":"IF(Massnahme=0,\"\",Massnahme)","v":""}]
[]
[]
[]
[]
[]
[]
[]
[]
[]
[]
[]
[]
[]
[null,null,null,null,null,"TESTBeginn"]
[null,null,null,null,null,"TESTEnde"]
[null,null,null,null,null,"letzter Sonntag",{"$f":"7-WEEKDAY(G22,2)+G22","v":"1900-01-01"}]
[null,null,null,null,null,"zeige immer SO als Ende der Woche","nein"]
[]
[null,"Samstag Unter","Sonntag Unter","letzter Sonntag Unterricht"]
[null,{"$f":"C37","v":"nein"},"nein","nein"]
[]
[]
[]
["ZEITPLAN",null,null,null,null,null,null,null,null,null,null,null,null,null,null,null,null,null,"Stoppdatum","2035-12-31",{"$f":"TODAY()","v":"2025-02-21"},"TEST-Debugger"]
[]
[]
[null,null,null,null,null,null,null,null,null,null,null,null,null,null,null,null,null,null,"Debugger",{"$f":"IF(T31=\"\",1,IF(T31<=U31,1,0))","v":0},"0…ok, 1…Datumüberlauf"]
["Veranstaltungsbeginn ",null,{"$f":"IF(G21<>\"\",G21,MassnahmeBeginn)","v":"00:00:00"},null,null,"Veranstaltungsende ",{"$f":"IF(MassnahmeEnde<>\"\",MassnahmeEnde,G22)","v":"00:00:00"},null,null,null,null,null,null,null,null,null,null,"Dateifunktion beschränkt auf Stoppdatum, sonst mögliche fehlerhafte Werte"]
[null,null,{"$f":"C35","v":"00:00:00"},null,null,null,{"$f":"G35","v":"00:00:00"},null,null,null,null,null,null,null,null,null,null,"Abrechnung ohne Wettbewerb"]
[null,"Samstag Unterricht ","nein",null,null,"Anzahl Wochen ",{"$f":"IF(T34=1,0,IF(A45=\"\",\"\",MAX(A45:A224)))","v":1}]
[]
[]
[]
[null,null,{"$f":"IF(AND(AuswahlSamstag=\"nein\",WEEKDAY(C35)=7,C35>30000),\"Beginn am SA! \",\"\") & IF(AND(AuswahlSamstag=\"nein\",WEEKDAY(G35)=7,G35>3000),\"Ende am SA! \",\"\")","v":""}]
[null,null,null,null,null,"Maßnahmenstunden"]
[null,null,"Summe:",{"$f":"SUM(INDIRECT(\"D45:D\" & 45+Anzahl_Wochen-1))","v":0},{"$f":"SUM(INDIRECT(\"E45:E\" & 45+Anzahl_Wochen-1))","v":0},{"$f":"SUM(INDIRECT(\"F45:F\" & 45+Anzahl_Wochen-1))","v":0},{"$f":"SUM(INDIRECT(\"G45:G\" & 45+Anzahl_Wochen-1))","v":0},{"$f":"SUM(INDIRECT(\"H45:H\" & 45+Anzahl_Wochen-1))","v":0},{"$f":"IF(H43<>$L$35,\"–> Achtung: Diese Summe muss mit den Gesamt MSTN [\" & L35 & \"] übereinstimmen!\",\"\")","v":""}]
["Woche der MN","Beginn","Ende",{"$f":"\"unterrichtsfreie\" & CHAR(10)   & \"Tage\" & CHAR(10) & IF(AuswahlSamstag=\"ja\",\"(außer So)\",\"(außer Sa, So)\")","v":"unterrichtsfreie\nTage\n(außer Sa, So)"},"MN-Tage \ngesamt","MS in\ndieser Woche","MS Gruppen-trainerInnen","MS Gesamt \n(für GKP-Zuordnung)",null,null,null,null,"Bemerkung",null,null,null,null,"Maßnahmen- \ntage","Feiertag\nrelevant in\nIntervall",null,"Feiertage\nrelevant","Feiertage","Achtung: keine Zwischenüberschriften!"]
[{"$f":"IF(B45<>\"\",1,\"\")","v":1},{"$f":"C35","v":"00:00:00"},{"$f":"IF(G$24=\"ja\",7-WEEKDAY(B45,2)+B45,MIN(B45+7-WEEKDAY(B45,2),G$35))","v":"00:00:00"},{"$f":"S45","v":0},{"$f":"MAX(R45-D45,0)","v":0},null,null,null,null,null,null,null,null,null,null,null,null,{"$f":"C45-B45+IF(WEEKDAY(C45)<>1,1,0)-IF(AND(WEEKDAY(C45,2)>=6,AuswahlSamstag=\"nein\"),1,0)","v":0},{"$f":"SUMPRODUCT((B45<=U$45:U$299)*(C45>=U$45:U$299))","v":0},null,{"$f":"IF(AuswahlSamstag=\"ja\",IF(WEEKDAY(V45)=1,\"-\",V45),IF(OR(WEEKDAY(V45)=1,WEEKDAY(V45)=7),\"-\",V45))","v":"2019-01-01"},"2019-01-01","Neujahrstag",{"$f":"YEAR(V45)","v":2019}]
[{"$f":"IF(ISERROR(IF(B46<>\"\",A45+1,0)),\"\",IF(B46<>\"\",A45+1,0))","v":0},{"$f":"IF(C45>=G35,\"\",B45+7-WEEKDAY(C35,2)+1)","v":""},{"$error":"#VALUE!"},{"$f":"S46","v":{"$error":"#VALUE!"}},{"$f":"MAX(R46-D46,0)","v":{"$error":"#VALUE!"}},null,null,null,null,null,null,null,null,null,null,null,null,{"$f":"C46-B46+IF(WEEKDAY(C46)<>1,1,0)-IF(AND(WEEKDAY(C46,2)>=6,AuswahlSamstag=\"nein\"),1,0)","v":{"$error":"#VALUE!"}},{"$f":"SUMPRODUCT((B46<=U$45:U$299)*(C46>=U$45:U$299))","v":{"$error":"#VALUE!"}},null,{"$f":"IF(AuswahlSamstag=\"ja\",IF(WEEKDAY(V46)=1,\"-\",V46),IF(OR(WEEKDAY(V46)=1,WEEKDAY(V46)=7),\"-\",V46))","v":"-"},"2019-01-06","Heilige Drei Könige",{"$f":"YEAR(V46)","v":2019}]
["",{"$f":"IF(C46>=G$35,\"\",B46+7)","v":{"$error":"#VALUE!"}},{"$error":"#VALUE!"},{"$error":"#VALUE!"},{"$error":"#VALUE!"},null,null,null,null,null,null,null,null,null,null,null,null,{"$error":"#VALUE!"},{"$f":"SUMPRODUCT((B47<=U$45:U$299)*(C47>=U$45:U$299))","v":{"$error":"#VALUE!"}},null,"2019-04-22","2019-04-22","Ostermontag",2019]
["",{"$error":"#VALUE!"},{"$error":"#VALUE!"},{"$error":"#VALUE!"},{"$error":"#VALUE!"},null,null,null,null,null,null,null,null,null,null,null,null,{"$error":"#VALUE!"},{"$f":"SUMPRODUCT((B48<=U$45:U$299)*(C48>=U$45:U$299))","v":{"$error":"#VALUE!"}},null,"2019-05-01","2019-05-01","Staatsfeiertag",2019]
["",{"$error":"#VALUE!"},{"$error":"#VALUE!"},{"$error":"#VALUE!"},{"$error":"#VALUE!"},null,null,null,null,null,null,null,null,null,null,null,null,{"$error":"#VALUE!"},{"$f":"SUMPRODUCT((B49<=U$45:U$299)*(C49>=U$45:U$299))","v":{"$error":"#VALUE!"}},null,"2019-05-30","2019-05-30","Christi Himmelfahrt",2019]
["",{"$error":"#VALUE!"},{"$error":"#VALUE!"},{"$error":"#VALUE!"},{"$error":"#VALUE!"},null,null,null,null,null,null,null,null,null,null,null,null,{"$error":"#VALUE!"},{"$f":"SUMPRODUCT((B50<=U$45:U$299)*(C50>=U$45:U$299))","v":{"$error":"#VALUE!"}},null,"2019-06-10","2019-06-10","Pfingstmontag",2019]
["",{"$error":"#VALUE!"},{"$error":"#VALUE!"},{"$error":"#VALUE!"},{"$error":"#VALUE!"},null,null,null,null,null,null,null,null,null,null,null,null,{"$error":"#VALUE!"},{"$f":"SUMPRODUCT((B51<=U$45:U$299)*(C51>=U$45:U$299))","v":{"$error":"#VALUE!"}},null,"2019-06-20","2019-06-20","Fronleichnam",2019]
["",{"$error":"#VALUE!"},{"$error":"#VALUE!"},{"$error":"#VALUE!"},{"$error":"#VALUE!"},null,null,null,null,null,null,null,null,null,null,null,null,{"$error":"#VALUE!"},{"$f":"SUMPRODUCT((B52<=U$45:U$299)*(C52>=U$45:U$299))","v":{"$error":"#VALUE!"}},null,"2019-08-15","2019-08-15","Mariä Himmelfahrt",2019]
["",{"$error":"#VALUE!"},{"$error":"#VALUE!"},{"$error":"#VALUE!"},{"$error":"#VALUE!"},null,null,null,null,null,null,null,null,null,null,null,null,{"$error":"#VALUE!"},{"$f":"SUMPRODUCT((B53<=U$45:U$299)*(C53>=U$45:U$299))","v":{"$error":"#VALUE!"}},null,"-","2019-10-26","Nationalfeiertag",2019]
["",{"$error":"#VALUE!"},{"$error":"#VALUE!"},{"$error":"#VALUE!"},{"$error":"#VALUE!"},null,null,null,null,null,null,null,null,null,null,null,null,{"$error":"#VALUE!"},{"$f":"SUMPRODUCT((B54<=U$45:U$299)*(C54>=U$45:U$299))","v":{"$error":"#VALUE!"}},null,"2019-11-01","2019-11-01","Allerheiligen",2019]
["",{"$error":"#VALUE!"},{"$error":"#VALUE!"},{"$error":"#VALUE!"},{"$error":"#VALUE!"},null,null,null,null,null,null,null,null,null,null,null,null,{"$error":"#VALUE!"},{"$f":"SUMPRODUCT((B55<=U$45:U$299)*(C55>=U$45:U$299))","v":{"$error":"#VALUE!"}},null,"-","2019-12-08","Mariä Empfängnis",2019]
["",{"$error":"#VALUE!"},{"$error":"#VALUE!"},{"$error":"#VALUE!"},{"$error":"#VALUE!"},null,null,null,null,null,null,null,null,null,null,null,null,{"$error":"#VALUE!"},{"$f":"SUMPRODUCT((B56<=U$45:U$299)*(C56>=U$45:U$299))","v":{"$error":"#VALUE!"}},null,"2019-12-24","2019-12-24","unterrichtsfrei",2019]
["",{"$error":"#VALUE!"},{"$error":"#VALUE!"},{"$error":"#VALUE!"},{"$error":"#VALUE!"},null,null,null,null,null,null,null,null,null,null,null,null,{"$error":"#VALUE!"},{"$f":"SUMPRODUCT((B57<=U$45:U$299)*(C57>=U$45:U$299))","v":{"$error":"#VALUE!"}},null,"2019-12-25","2019-12-25","Christtag",2019]
["",{"$error":"#VALUE!"},{"$error":"#VALUE!"},{"$error":"#VALUE!"},{"$error":"#VALUE!"},null,null,null,null,null,null,null,null,null,null,null,null,{"$error":"#VALUE!"},{"$f":"SUMPRODUCT((B58<=U$45:U$299)*(C58>=U$45:U$299))","v":{"$error":"#VALUE!"}},null,"2019-12-26","2019-12-26","Stephanitag",2019]
["",{"$error":"#VALUE!"},{"$error":"#VALUE!"},{"$error":"#VALUE!"},{"$error":"#VALUE!"},null,null,null,null,null,null,null,null,null,null,null,null,{"$error":"#VALUE!"},{"$f":"SUMPRODUCT((B59<=U$45:U$299)*(C59>=U$45:U$299))","v":{"$error":"#VALUE!"}},null,"2019-12-31","2019-12-31","unterrichtsfrei",2019]
["",{"$error":"#VALUE!"},{"$error":"#VALUE!"},{"$error":"#VALUE!"},{"$error":"#VALUE!"},null,null,null,null,null,null,null,null,null,null,null,null,{"$error":"#VALUE!"},{"$f":"SUMPRODUCT((B60<=U$45:U$299)*(C60>=U$45:U$299))","v":{"$error":"#VALUE!"}},null,"2020-01-01","2020-01-01","Neujahrstag",2020]
["",{"$error":"#VALUE!"},{"$error":"#VALUE!"},{"$error":"#VALUE!"},{"$error":"#VALUE!"},null,null,null,null,null,null,null,null,null,null,null,null,{"$error":"#VALUE!"},{"$f":"SUMPRODUCT((B61<=U$45:U$299)*(C61>=U$45:U$299))","v":{"$error":"#VALUE!"}},null,"2020-01-06","2020-01-06","Heilige Drei Könige",2020]
["",{"$error":"#VALUE!"},{"$error":"#VALUE!"},{"$error":"#VALUE!"},{"$error":"#VALUE!"},null,null,null,null,null,null,null,null,null,null,null,null,{"$error":"#VALUE!"},{"$f":"SUMPRODUCT((B62<=U$45:U$299)*(C62>=U$45:U$299))","v":{"$error":"#VALUE!"}},null,"2020-04-13","2020-04-13","Ostermontag",2020]
["",{"$error":"#VALUE!"},{"$f":"IF(G$24=\"ja\",7-WEEKDAY(B63,2)+B63,MIN(B63+7-WEEKDAY(B63,2),G$35))","v":{"$error":"#VALUE!"}},{"$error":"#VALUE!"},{"$error":"#VALUE!"},null,null,null,null,null,null,null,null,null,null,null,null,{"$error":"#VALUE!"},{"$f":"SUMPRODUCT((B63<=U$45:U$299)*(C63>=U$45:U$299))","v":{"$error":"#VALUE!"}},null,"2020-05-01","2020-05-01","Staatsfeiertag",2020]
["",{"$error":"#VALUE!"},{"$error":"#VALUE!"},{"$error":"#VALUE!"},{"$error":"#VALUE!"},null,null,null,null,null,null,null,null,null,null,null,null,{"$error":"#VALUE!"},{"$f":"SUMPRODUCT((B64<=U$45:U$299)*(C64>=U$45:U$299))","v":{"$error":"#VALUE!"}},null,"2020-05-21","2020-05-21","Christi Himmelfahrt",2020]
["",{"$error":"#VALUE!"},{"$error":"#VALUE!"},{"$error":"#VALUE!"},{"$error":"#VALUE!"},null,null,null,null,null,null,null,null,null,null,null,null,{"$error":"#VALUE!"},{"$f":"SUMPRODUCT((B65<=U$45:U$299)*(C65>=U$45:U$299))","v":{"$error":"#VALUE!"}},null,"2020-06-01","2020-06-01","Pfingstmontag",2020]
["",{"$error":"#VALUE!"},{"$error":"#VALUE!"},{"$error":"#VALUE!"},{"$error":"#VALUE!"},null,null,null,null,null,null,null,null,null,null,null,null,{"$error":"#VALUE!"},{"$f":"SUMPRODUCT((B66<=U$45:U$299)*(C66>=U$45:U$299))","v":{"$error":"#VALUE!"}},null,"2020-06-11","2020-06-11","Fronleichnam",2020]
["",{"$error":"#VALUE!"},{"$error":"#VALUE!"},{"$error":"#VALUE!"},{"$error":"#VALUE!"},null,null,null,null,null,null,null,null,null,null,null,null,{"$error":"#VALUE!"},{"$f":"SUMPRODUCT((B67<=U$45:U$299)*(C67>=U$45:U$299))","v":{"$error":"#VALUE!"}},null,"-","2020-08-15","Mariä Himmelfahrt",2020]
["",{"$error":"#VALUE!"},{"$error":"#VALUE!"},{"$error":"#VALUE!"},{"$error":"#VALUE!"},null,null,null,null,null,null,null,null,null,null,null,null,{"$error":"#VALUE!"},{"$f":"SUMPRODUCT((B68<=U$45:U$299)*(C68>=U$45:U$299))","v":{"$error":"#VALUE!"}},null,"2020-10-26","2020-10-26","Nationalfeiertag",2020]
["",{"$error":"#VALUE!"},{"$error":"#VALUE!"},{"$error":"#VALUE!"},{"$error":"#VALUE!"},null,null,null,null,null,null,null,null,null,null,null,null,{"$error":"#VALUE!"},{"$f":"SUMPRODUCT((B69<=U$45:U$299)*(C69>=U$45:U$299))","v":{"$error":"#VALUE!"}},null,"-","2020-11-01","Allerheiligen",2020]
["",{"$error":"#VALUE!"},{"$error":"#VALUE!"},{"$error":"#VALUE!"},{"$error":"#VALUE!"},null,null,null,null,null,null,null,null,null,null,null,null,{"$error":"#VALUE!"},{"$f":"SUMPRODUCT((B70<=U$45:U$299)*(C70>=U$45:U$299))","v":{"$error":"#VALUE!"}},null,"2020-12-08","2020-12-08","Mariä Empfängnis",2020]
["",{"$error":"#VALUE!"},{"$error":"#VALUE!"},{"$error":"#VALUE!"},{"$error":"#VALUE!"},null,null,null,null,null,null,null,null,null,null,null,null,{"$error":"#VALUE!"},{"$f":"SUMPRODUCT((B71<=U$45:U$299)*(C71>=U$45:U$299))","v":{"$error":"#VALUE!"}},null,"2020-12-24","2020-12-24","unterrichtsfrei",2020]
["",{"$error":"#VALUE!"},{"$error":"#VALUE!"},{"$error":"#VALUE!"},{"$error":"#VALUE!"},null,null,null,null,null,null,null,null,null,null,null,null,{"$error":"#VALUE!"},{"$f":"SUMPRODUCT((B72<=U$45:U$299)*(C72>=U$45:U$299))","v":{"$error":"#VALUE!"}},null,"2020-12-25","2020-12-25","Christtag",2020]
["",{"$error":"#VALUE!"},{"$error":"#VALUE!"},{"$error":"#VALUE!"},{"$error":"#VALUE!"},null,null,null,null,null,null,null,null,null,null,null,null,{"$error":"#VALUE!"},{"$f":"SUMPRODUCT((B73<=U$45:U$299)*(C73>=U$45:U$299))","v":{"$error":"#VALUE!"}},null,"-","2020-12-26","Stephanitag",2020]
["",{"$error":"#VALUE!"},{"$error":"#VALUE!"},{"$error":"#VALUE!"},{"$error":"#VALUE!"},null,null,null,null,null,null,null,null,null,null,null,null,{"$error":"#VALUE!"},{"$f":"SUMPRODUCT((B74<=U$45:U$299)*(C74>=U$45:U$299))","v":{"$error":"#VALUE!"}},null,"2020-12-31","2020-12-31","unterrichtsfrei",2020]
["",{"$error":"#VALUE!"},{"$error":"#VALUE!"},{"$error":"#VALUE!"},{"$error":"#VALUE!"},null,null,null,null,null,null,null,null,null,null,null,null,{"$error":"#VALUE!"},{"$f":"SUMPRODUCT((B75<=U$45:U$299)*(C75>=U$45:U$299))","v":{"$error":"#VALUE!"}},null,"2021-01-01","2021-01-01","Neujahrstag",2021]
["",{"$error":"#VALUE!"},{"$error":"#VALUE!"},{"$error":"#VALUE!"},{"$error":"#VALUE!"},null,null,null,null,null,null,null,null,null,null,null,null,{"$error":"#VALUE!"},{"$f":"SUMPRODUCT((B76<=U$45:U$299)*(C76>=U$45:U$299))","v":{"$error":"#VALUE!"}},null,"2021-01-06","2021-01-06","Heilige Drei Könige",2021]
["",{"$error":"#VALUE!"},{"$f":"IF(G$24=\"ja\",7-WEEKDAY(B77,2)+B77,MIN(B77+7-WEEKDAY(B77,2),G$35))","v":{"$error":"#VALUE!"}},{"$error":"#VALUE!"},{"$error":"#VALUE!"},null,null,null,null,null,null,null,null,null,null,null,null,{"$f":"C77-B77+IF(WEEKDAY(C77)<>1,1,0)-IF(AND(WEEKDAY(C77,2)>=6,AuswahlSamstag=\"nein\"),1,0)","v":{"$error":"#VALUE!"}},{"$f":"SUMPRODUCT((B77<=U$45:U$299)*(C77>=U$45:U$299))","v":{"$error":"#VALUE!"}},null,{"$f":"IF(AuswahlSamstag=\"ja\",IF(WEEKDAY(V77)=1,\"-\",V77),IF(OR(WEEKDAY(V77)=1,WEEKDAY(V77)=7),\"-\",V77))","v":"2021-04-05"},"2021-04-05","Ostermontag",2021]
[{"$f":"IF(ISERROR(IF(B78<>\"\",A77+1,0)),\"\",IF(B78<>\"\",A77+1,0))","v":""},{"$error":"#VALUE!"},{"$error":"#VALUE!"},{"$f":"S78","v":{"$error":"#VALUE!"}},{"$error":"#VALUE!"},null,null,null,null,null,null,null,null,null,null,null,null,{"$error":"#VALUE!"},{"$f":"SUMPRODUCT((B78<=U$45:U$299)*(C78>=U$45:U$299))","v":{"$error":"#VALUE!"}},null,"-","2021-05-01","Staatsfeiertag",2021]
["",{"$f":"IF(C78>=G$35,\"\",B78+7)","v":{"$error":"#VALUE!"}},{"$error":"#VALUE!"},{"$error":"#VALUE!"},{"$error":"#VALUE!"},null,null,null,null,null,null,null,null,null,null,null,null,{"$error":"#VALUE!"},{"$f":"SUMPRODUCT((B79<=U$45:U$299)*(C79>=U$45:U$299))","v":{"$error":"#VALUE!"}},null,"2021-05-13","2021-05-13","Christi Himmelfahrt",2021]
["",{"$error":"#VALUE!"},{"$error":"#VALUE!"},{"$error":"#VALUE!"},{"$error":"#VALUE!"},null,null,null,null,null,null,null,null,null,null,null,null,{"$error":"#VALUE!"},{"$f":"SUMPRODUCT((B80<=U$45:U$299)*(C80>=U$45:U$299))","v":{"$error":"#VALUE!"}},null,"2021-05-24","2021-05-24","Pfingstmontag",2021]
["",{"$error":"#VALUE!"},{"$error":"#VALUE!"},{"$error":"#VALUE!"},{"$error":"#VALUE!"},null,null,null,null,null,null,null,null,null,null,null,null,{"$error":"#VALUE!"},{"$f":"SUMPRODUCT((B81<=U$45:U$299)*(C81>=U$45:U$299))","v":{"$error":"#VALUE!"}},null,"2021-06-03","2021-06-03","Fronleichnam",2021]
["",{"$error":"#VALUE!"},{"$error":"#VALUE!"},{"$error":"#VALUE!"},{"$error":"#VALUE!"},null,null,null,null,null,null,null,null,null,null,null,null,{"$error":"#VALUE!"},{"$f":"SUMPRODUCT((B82<=U$45:U$299)*(C82>=U$45:U$299))","v":{"$error":"#VALUE!"}},null,"-","2021-08-15","Maria Himmelfahrt",2021]
["",{"$error":"#VALUE!"},{"$error":"#VALUE!"},{"$error":"#VALUE!"},{"$error":"#VALUE!"},null,null,null,null,null,null,null,null,null,null,null,null,{"$error":"#VALUE!"},{"$f":"SUMPRODUCT((B83<=U$45:U$299)*(C83>=U$45:U$299))","v":{"$error":"#VALUE!"}},null,"2021-10-26","2021-10-26","Nationalfeiertag",2021]
["",{"$error":"#VALUE!"},{"$error":"#VALUE!"},{"$error":"#VALUE!"},{"$error":"#VALUE!"},null,null,null,null,null,null,null,null,null,null,null,null,{"$error":"#VALUE!"},{"$f":"SUMPRODUCT((B84<=U$45:U$299)*(C84>=U$45:U$299))","v":{"$error":"#VALUE!"}},null,"2021-11-01","2021-11-01","Allerheiligen",2021]
["",{"$error":"#VALUE!"},{"$error":"#VALUE!"},{"$error":"#VALUE!"},{"$error":"#VALUE!"},null,null,null,null,null,null,null,null,null,null,null,null,{"$error":"#VALUE!"},{"$f":"SUMPRODUCT((B85<=U$45:U$299)*(C85>=U$45:U$299))","v":{"$error":"#VALUE!"}},null,"2021-12-08","2021-12-08","Maria Empfängnis",2021]
["",{"$error":"#VALUE!"},{"$error":"#VALUE!"},{"$error":"#VALUE!"},{"$error":"#VALUE!"},null,null,null,null,null,null,null,null,null,null,null,null,{"$error":"#VALUE!"},{"$f":"SUMPRODUCT((B86<=U$45:U$299)*(C86>=U$45:U$299))","v":{"$error":"#VALUE!"}},null,"2021-12-24","2021-12-24","unterrichtsfrei",2021]
["",{"$error":"#VALUE!"},{"$error":"#VALUE!"},{"$error":"#VALUE!"},{"$error":"#VALUE!"},null,null,null,null,null,null,null,null,null,null,null,null,{"$error":"#VALUE!"},{"$f":"SUMPRODUCT((B87<=U$45:U$299)*(C87>=U$45:U$299))","v":{"$error":"#VALUE!"}},null,"-","2021-12-25","Christtag",2021]
["",{"$error":"#VALUE!"},{"$error":"#VALUE!"},{"$error":"#VALUE!"},{"$error":"#VALUE!"},null,null,null,null,null,null,null,null,null,null,null,null,{"$error":"#VALUE!"},{"$f":"SUMPRODUCT((B88<=U$45:U$299)*(C88>=U$45:U$299))","v":{"$error":"#VALUE!"}},null,"-","2021-12-26","Stephanstag",2021]
["",{"$error":"#VALUE!"},{"$error":"#VALUE!"},{"$error":"#VALUE!"},{"$error":"#VALUE!"},null,null,null,null,null,null,null,null,null,null,null,null,{"$error":"#VALUE!"},{"$f":"SUMPRODUCT((B89<=U$45:U$299)*(C89>=U$45:U$299))","v":{"$error":"#VALUE!"}},null,"2021-12-31","2021-12-31","unterrichtsfrei",2021]
["",{"$error":"#VALUE!"},{"$error":"#VALUE!"},{"$error":"#VALUE!"},{"$error":"#VALUE!"},null,null,null,null,null,null,null,null,null,null,null,null,{"$error":"#VALUE!"},{"$f":"SUMPRODUCT((B90<=U$45:U$299)*(C90>=U$45:U$299))","v":{"$error":"#VALUE!"}},null,"-","2022-01-01","Neujahrstag",2022]
["",{"$error":"#VALUE!"},{"$error":"#VALUE!"},{"$error":"#VALUE!"},{"$error":"#VALUE!"},null,null,null,null,null,null,null,null,null,null,null,null,{"$error":"#VALUE!"},{"$f":"SUMPRODUCT((B91<=U$45:U$299)*(C91>=U$45:U$299))","v":{"$error":"#VALUE!"}},null,"2022-01-06","2022-01-06","Heilige Drei Könige",2022]
["",{"$error":"#VALUE!"},{"$error":"#VALUE!"},{"$error":"#VALUE!"},{"$error":"#VALUE!"},null,null,null,null,null,null,null,null,null,null,null,null,{"$error":"#VALUE!"},{"$f":"SUMPRODUCT((B92<=U$45:U$299)*(C92>=U$45:U$299))","v":{"$error":"#VALUE!"}},null,"2022-04-18","2022-04-18","Ostermontag",2022]
["",{"$error":"#VALUE!"},{"$error":"#VALUE!"},{"$error":"#VALUE!"},{"$error":"#VALUE!"},null,null,null,null,null,null,null,null,null,null,null,null,{"$error":"#VALUE!"},{"$f":"SUMPRODUCT((B93<=U$45:U$299)*(C93>=U$45:U$299))","v":{"$error":"#VALUE!"}},null,"-","2022-05-01","Staatsfeiertag",2022]
["",{"$error":"#VALUE!"},{"$error":"#VALUE!"},{"$error":"#VALUE!"},{"$error":"#VALUE!"},null,null,null,null,null,null,null,null,null,null,null,null,{"$error":"#VALUE!"},{"$f":"SUMPRODUCT((B94<=U$45:U$299)*(C94>=U$45:U$299))","v":{"$error":"#VALUE!"}},null,"2022-05-26","2022-05-26","Christi Himmelfahrt",2022]
["",{"$error":"#VALUE!"},{"$error":"#VALUE!"},{"$error":"#VALUE!"},{"$error":"#VALUE!"},null,null,null,null,null,null,null,null,null,null,null,null,{"$error":"#VALUE!"},{"$f":"SUMPRODUCT((B95<=U$45:U$299)*(C95>=U$45:U$299))","v":{"$error":"#VALUE!"}},null,"2022-06-06","2022-06-06","Pfingstmontag",2022]
["",{"$error":"#VALUE!"},{"$error":"#VALUE!"},{"$error":"#VALUE!"},{"$error":"#VALUE!"},null,null,null,null,null,null,null,null,null,null,null,null,{"$error":"#VALUE!"},{"$f":"SUMPRODUCT((B96<=U$45:U$299)*(C96>=U$45:U$299))","v":{"$error":"#VALUE!"}},null,"2022-06-16","2022-06-16","Fronleichnam",2022]
["",{"$error":"#VALUE!"},{"$error":"#VALUE!"},{"$error":"#VALUE!"},{"$error":"#VALUE!"},null,null,null,null,null,null,null,null,null,null,null,null,{"$error":"#VALUE!"},{"$f":"SUMPRODUCT((B97<=U$45:U$299)*(C97>=U$45:U$299))","v":{"$error":"#VALUE!"}},null,"2022-08-15","2022-08-15","Maria Himmelfahrt",2022]
["",{"$error":"#VALUE!"},{"$error":"#VALUE!"},{"$error":"#VALUE!"},{"$error":"#VALUE!"},null,null,null,null,null,null,null,null,null,null,null,null,{"$error":"#VALUE!"},{"$f":"SUMPRODUCT((B98<=U$45:U$299)*(C98>=U$45:U$299))","v":{"$error":"#VALUE!"}},null,"2022-10-26","2022-10-26","Nationalfeiertag",2022]
["",{"$error":"#VALUE!"},{"$error":"#VALUE!"},{"$error":"#VALUE!"},{"$error":"#VALUE!"},null,null,null,null,null,null,null,null,null,null,null,null,{"$error":"#VALUE!"},{"$f":"SUMPRODUCT((B99<=U$45:U$299)*(C99>=U$45:U$299))","v":{"$error":"#VALUE!"}},null,"2022-11-01","2022-11-01","Allerheiligen",2022]
["",{"$error":"#VALUE!"},{"$error":"#VALUE!"},{"$error":"#VALUE!"},{"$error":"#VALUE!"},null,null,null,null,null,null,null,null,null,null,null,null,{"$error":"#VALUE!"},{"$f":"SUMPRODUCT((B100<=U$45:U$299)*(C100>=U$45:U$299))","v":{"$error":"#VALUE!"}},null,"2022-12-08","2022-12-08","Maria Empfängnis",2022]
["",{"$error":"#VALUE!"},{"$error":"#VALUE!"},{"$error":"#VALUE!"},{"$error":"#VALUE!"},null,null,null,null,null,null,null,null,null,null,null,null,{"$error":"#VALUE!"},{"$f":"SUMPRODUCT((B101<=U$45:U$299)*(C101>=U$45:U$299))","v":{"$error":"#VALUE!"}},null,"-","2022-12-24","unterrichtsfrei",2022]
["",{"$error":"#VALUE!"},{"$error":"#VALUE!"},{"$error":"#VALUE!"},{"$error":"#VALUE!"},null,null,null,null,null,null,null,null,null,null,null,null,{"$error":"#VALUE!"},{"$f":"SUMPRODUCT((B102<=U$45:U$299)*(C102>=U$45:U$299))","v":{"$error":"#VALUE!"}},null,"-","2022-12-25","Christtag",2022]
["",{"$error":"#VALUE!"},{"$error":"#VALUE!"},{"$error":"#VALUE!"},{"$error":"#VALUE!"},null,null,null,null,null,null,null,null,null,null,null,null,{"$error":"#VALUE!"},{"$f":"SUMPRODUCT((B103<=U$45:U$299)*(C103>=U$45:U$299))","v":{"$error":"#VALUE!"}},null,"2022-12-26","2022-12-26","Stephanstag",2022]
["",{"$error":"#VALUE!"},{"$error":"#VALUE!"},{"$error":"#VALUE!"},{"$error":"#VALUE!"},null,null,null,null,null,null,null,null,null,null,null,null,{"$error":"#VALUE!"},{"$f":"SUMPRODUCT((B104<=U$45:U$299)*(C104>=U$45:U$299))","v":{"$error":"#VALUE!"}},null,"-","2022-12-31","unterrichtsfrei",2022]
["",{"$error":"#VALUE!"},{"$error":"#VALUE!"},{"$error":"#VALUE!"},{"$error":"#VALUE!"},null,null,null,null,null,null,null,null,null,null,null,null,{"$error":"#VALUE!"},{"$f":"SUMPRODUCT((B105<=U$45:U$299)*(C105>=U$45:U$299))","v":{"$error":"#VALUE!"}},null,"-","2023-01-01","Neujahrstag",2023]
["",{"$error":"#VALUE!"},{"$error":"#VALUE!"},{"$error":"#VALUE!"},{"$error":"#VALUE!"},null,null,null,null,null,null,null,null,null,null,null,null,{"$error":"#VALUE!"},{"$f":"SUMPRODUCT((B106<=U$45:U$299)*(C106>=U$45:U$299))","v":{"$error":"#VALUE!"}},null,"2023-01-06","2023-01-06","Heilige Drei Könige",2023]
["",{"$error":"#VALUE!"},{"$error":"#VALUE!"},{"$error":"#VALUE!"},{"$error":"#VALUE!"},null,null,null,null,null,null,null,null,null,null,null,null,{"$error":"#VALUE!"},{"$f":"SUMPRODUCT((B107<=U$45:U$299)*(C107>=U$45:U$299))","v":{"$error":"#VALUE!"}},null,"2023-04-10","2023-04-10","Ostermontag",2023]
["",{"$error":"#VALUE!"},{"$error":"#VALUE!"},{"$error":"#VALUE!"},{"$error":"#VALUE!"},null,null,null,null,null,null,null,null,null,null,null,null,{"$error":"#VALUE!"},{"$f":"SUMPRODUCT((B108<=U$45:U$299)*(C108>=U$45:U$299))","v":{"$error":"#VALUE!"}},null,"2023-05-01","2023-05-01","Staatsfeiertag",2023]
["",{"$error":"#VALUE!"},{"$f":"IF(G$24=\"ja\",7-WEEKDAY(B109,2)+B109,MIN(B109+7-WEEKDAY(B109,2),G$35))","v":{"$error":"#VALUE!"}},{"$error":"#VALUE!"},{"$error":"#VALUE!"},null,null,null,null,null,null,null,null,null,null,null,null,{"$f":"C109-B109+IF(WEEKDAY(C109)<>1,1,0)-IF(AND(WEEKDAY(C109,2)>=6,AuswahlSamstag=\"nein\"),1,0)","v":{"$error":"#VALUE!"}},{"$f":"SUMPRODUCT((B109<=U$45:U$299)*(C109>=U$45:U$299))","v":{"$error":"#VALUE!"}},null,{"$f":"IF(AuswahlSamstag=\"ja\",IF(WEEKDAY(V109)=1,\"-\",V109),IF(OR(WEEKDAY(V109)=1,WEEKDAY(V109)=7),\"-\",V109))","v":"2023-05-18"},"2023-05-18","Christi Himmelfahrt",2023]
[{"$f":"IF(ISERROR(IF(B110<>\"\",A109+1,0)),\"\",IF(B110<>\"\",A109+1,0))","v":""},{"$error":"#VALUE!"},{"$error":"#VALUE!"},{"$f":"S110","v":{"$error":"#VALUE!"}},{"$f":"MAX(R110-D110,0)","v":{"$error":"#VALUE!"}},null,null,null,null,null,null,null,null,null,null,null,null,{"$error":"#VALUE!"},{"$f":"SUMPRODUCT((B110<=U$45:U$299)*(C110>=U$45:U$299))","v":{"$error":"#VALUE!"}},null,"2023-05-29","2023-05-29","Pfingstmontag",{"$f":"YEAR(V110)","v":2023}]
["",{"$f":"IF(C110>=G$35,\"\",B110+7)","v":{"$error":"#VALUE!"}},{"$error":"#VALUE!"},{"$error":"#VALUE!"},{"$error":"#VALUE!"},null,null,null,null,null,null,null,null,null,null,null,null,{"$error":"#VALUE!"},{"$f":"SUMPRODUCT((B111<=U$45:U$299)*(C111>=U$45:U$299))","v":{"$error":"#VALUE!"}},null,"2023-06-08","2023-06-08","Fronleichnam",2023]
["",{"$error":"#VALUE!"},{"$error":"#VALUE!"},{"$error":"#VALUE!"},{"$error":"#VALUE!"},null,null,null,null,null,null,null,null,null,null,null,null,{"$error":"#VALUE!"},{"$f":"SUMPRODUCT((B112<=U$45:U$299)*(C112>=U$45:U$299))","v":{"$error":"#VALUE!"}},null,"2023-08-15","2023-08-15","Maria Himmelfahrt",2023]
["",{"$error":"#VALUE!"},{"$error":"#VALUE!"},{"$error":"#VALUE!"},{"$error":"#VALUE!"},null,null,null,null,null,null,null,null,null,null,null,null,{"$error":"#VALUE!"},{"$f":"SUMPRODUCT((B113<=U$45:U$299)*(C113>=U$45:U$299))","v":{"$error":"#VALUE!"}},null,"2023-10-26","2023-10-26","Nationalfeiertag",2023]
["",{"$error":"#VALUE!"},{"$error":"#VALUE!"},{"$error":"#VALUE!"},{"$error":"#VALUE!"},null,null,null,null,null,null,null,null,null,null,null,null,{"$error":"#VALUE!"},{"$f":"SUMPRODUCT((B114<=U$45:U$299)*(C114>=U$45:U$299))","v":{"$error":"#VALUE!"}},null,"2023-11-01","2023-11-01","Allerheiligen",2023]
["",{"$error":"#VALUE!"},{"$error":"#VALUE!"},{"$error":"#VALUE!"},{"$error":"#VALUE!"},null,null,null,null,null,null,null,null,null,null,null,null,{"$error":"#VALUE!"},{"$f":"SUMPRODUCT((B115<=U$45:U$299)*(C115>=U$45:U$299))","v":{"$error":"#VALUE!"}},null,"2023-12-08","2023-12-08","Maria Empfängnis",2023]
["",{"$error":"#VALUE!"},{"$error":"#VALUE!"},{"$error":"#VALUE!"},{"$error":"#VALUE!"},null,null,null,null,null,null,null,null,null,null,null,null,{"$error":"#VALUE!"},{"$f":"SUMPRODUCT((B116<=U$45:U$299)*(C116>=U$45:U$299))","v":{"$error":"#VALUE!"}},null,"-","2023-12-24","unterrichtsfrei",2023]
["",{"$error":"#VALUE!"},{"$error":"#VALUE!"},{"$error":"#VALUE!"},{"$error":"#VALUE!"},null,null,null,null,null,null,null,null,null,null,null,null,{"$error":"#VALUE!"},{"$f":"SUMPRODUCT((B117<=U$45:U$299)*(C117>=U$45:U$299))","v":{"$error":"#VALUE!"}},null,"2023-12-25","2023-12-25","Christtag",2023]
["",{"$error":"#VALUE!"},{"$error":"#VALUE!"},{"$error":"#VALUE!"},{"$error":"#VALUE!"},null,null,null,null,null,null,null,null,null,null,null,null,{"$error":"#VALUE!"},{"$f":"SUMPRODUCT((B118<=U$45:U$299)*(C118>=U$45:U$299))","v":{"$error":"#VALUE!"}},null,"2023-12-26","2023-12-26","Stephanstag",2023]
["",{"$error":"#VALUE!"},{"$error":"#VALUE!"},{"$error":"#VALUE!"},{"$error":"#VALUE!"},null,null,null,null,null,null,null,null,null,null,null,null,{"$error":"#VALUE!"},{"$f":"SUMPRODUCT((B119<=U$45:U$299)*(C119>=U$45:U$299))","v":{"$error":"#VALUE!"}},null,"-","2023-12-31","unterrichtsfrei",2023]
["",{"$error":"#VALUE!"},{"$error":"#VALUE!"},{"$error":"#VALUE!"},{"$error":"#VALUE!"},null,null,null,null,null,null,null,null,null,null,null,null,{"$error":"#VALUE!"},{"$f":"SUMPRODUCT((B120<=U$45:U$299)*(C120>=U$45:U$299))","v":{"$error":"#VALUE!"}},null,"2024-01-01","2024-01-01","Neujahrstag",2024]
["",{"$error":"#VALUE!"},{"$error":"#VALUE!"},{"$error":"#VALUE!"},{"$error":"#VALUE!"},null,null,null,null,null,null,null,null,null,null,null,null,{"$error":"#VALUE!"},{"$f":"SUMPRODUCT((B121<=U$45:U$299)*(C121>=U$45:U$299))","v":{"$error":"#VALUE!"}},null,"-","2024-01-06","Heilige Drei Könige",2024]
["",{"$error":"#VALUE!"},{"$error":"#VALUE!"},{"$error":"#VALUE!"},{"$error":"#VALUE!"},null,null,null,null,null,null,null,null,null,null,null,null,{"$error":"#VALUE!"},{"$f":"SUMPRODUCT((B122<=U$45:U$299)*(C122>=U$45:U$299))","v":{"$error":"#VALUE!"}},null,"2024-04-01","2024-04-01","Ostermontag",2024]
["",{"$error":"#VALUE!"},{"$error":"#VALUE!"},{"$error":"#VALUE!"},{"$error":"#VALUE!"},null,null,null,null,null,null,null,null,null,null,null,null,{"$error":"#VALUE!"},{"$f":"SUMPRODUCT((B123<=U$45:U$299)*(C123>=U$45:U$299))","v":{"$error":"#VALUE!"}},null,"2024-05-01","2024-05-01","Staatsfeiertag",2024]
["",{"$error":"#VALUE!"},{"$error":"#VALUE!"},{"$error":"#VALUE!"},{"$error":"#VALUE!"},null,null,null,null,null,null,null,null,null,null,null,null,{"$error":"#VALUE!"},{"$f":"SUMPRODUCT((B124<=U$45:U$299)*(C124>=U$45:U$299))","v":{"$error":"#VALUE!"}},null,"2024-05-09","2024-05-09","Christi Himmelfahrt",2024]
["",{"$error":"#VALUE!"},{"$error":"#VALUE!"},{"$error":"#VALUE!"},{"$error":"#VALUE!"},null,null,null,null,null,null,null,null,null,null,null,null,{"$error":"#VALUE!"},{"$f":"SUMPRODUCT((B125<=U$45:U$299)*(C125>=U$45:U$299))","v":{"$error":"#VALUE!"}},null,"2024-05-20","2024-05-20","Pfingstmontag",2024]
["",{"$error":"#VALUE!"},{"$error":"#VALUE!"},{"$error":"#VALUE!"},{"$error":"#VALUE!"},null,null,null,null,null,null,null,null,null,null,null,null,{"$error":"#VALUE!"},{"$f":"SUMPRODUCT((B126<=U$45:U$299)*(C126>=U$45:U$299))","v":{"$error":"#VALUE!"}},null,"2024-05-30","2024-05-30","Fronleichnam",2024]
["",{"$error":"#VALUE!"},{"$error":"#VALUE!"},{"$error":"#VALUE!"},{"$error":"#VALUE!"},null,null,null,null,null,null,null,null,null,null,null,null,{"$error":"#VALUE!"},{"$f":"SUMPRODUCT((B127<=U$45:U$299)*(C127>=U$45:U$299))","v":{"$error":"#VALUE!"}},null,"2024-08-15","2024-08-15","Maria Himmelfahrt",2024]
["",{"$error":"#VALUE!"},{"$error":"#VALUE!"},{"$error":"#VALUE!"},{"$error":"#VALUE!"},null,null,null,null,null,null,null,null,null,null,null,null,{"$error":"#VALUE!"},{"$f":"SUMPRODUCT((B128<=U$45:U$299)*(C128>=U$45:U$299))","v":{"$error":"#VALUE!"}},null,"-","2024-10-26","Nationalfeiertag",2024]
["",{"$error":"#VALUE!"},{"$error":"#VALUE!"},{"$error":"#VALUE!"},{"$error":"#VALUE!"},null,null,null,null,null,null,null,null,null,null,null,null,{"$error":"#VALUE!"},{"$f":"SUMPRODUCT((B129<=U$45:U$299)*(C129>=U$45:U$299))","v":{"$error":"#VALUE!"}},null,"2024-11-01","2024-11-01","Allerheiligen",2024]
["",{"$error":"#VALUE!"},{"$error":"#VALUE!"},{"$error":"#VALUE!"},{"$error":"#VALUE!"},null,null,null,null,null,null,null,null,null,null,null,null,{"$error":"#VALUE!"},{"$f":"SUMPRODUCT((B130<=U$45:U$299)*(C130>=U$45:U$299))","v":{"$error":"#VALUE!"}},null,"-","2024-12-08","Maria Empfängnis",2024]
["",{"$error":"#VALUE!"},{"$error":"#VALUE!"},{"$error":"#VALUE!"},{"$error":"#VALUE!"},null,null,null,null,null,null,null,null,null,null,null,null,{"$error":"#VALUE!"},{"$f":"SUMPRODUCT((B131<=U$45:U$299)*(C131>=U$45:U$299))","v":{"$error":"#VALUE!"}},null,"2024-12-24","2024-12-24","unterrichtsfrei",2024]
["",{"$error":"#VALUE!"},{"$error":"#VALUE!"},{"$error":"#VALUE!"},{"$error":"#VALUE!"},null,null,null,null,null,null,null,null,null,null,null,null,{"$error":"#VALUE!"},{"$f":"SUMPRODUCT((B132<=U$45:U$299)*(C132>=U$45:U$299))","v":{"$error":"#VALUE!"}},null,"2024-12-25","2024-12-25","Christtag",2024]
["",{"$error":"#VALUE!"},{"$error":"#VALUE!"},{"$error":"#VALUE!"},{"$error":"#VALUE!"},null,null,null,null,null,null,null,null,null,null,null,null,{"$error":"#VALUE!"},{"$f":"SUMPRODUCT((B133<=U$45:U$299)*(C133>=U$45:U$299))","v":{"$error":"#VALUE!"}},null,"2024-12-26","2024-12-26","Stephanstag",2024]
["",{"$error":"#VALUE!"},{"$error":"#VALUE!"},{"$error":"#VALUE!"},{"$error":"#VALUE!"},null,null,null,null,null,null,null,null,null,null,null,null,{"$error":"#VALUE!"},{"$f":"SUMPRODUCT((B134<=U$45:U$299)*(C134>=U$45:U$299))","v":{"$error":"#VALUE!"}},null,"2024-12-31","2024-12-31","unterrichtsfrei",2024]
["",{"$error":"#VALUE!"},{"$error":"#VALUE!"},{"$error":"#VALUE!"},{"$error":"#VALUE!"},null,null,null,null,null,null,null,null,null,null,null,null,{"$error":"#VALUE!"},{"$f":"SUMPRODUCT((B135<=U$45:U$299)*(C135>=U$45:U$299))","v":{"$error":"#VALUE!"}},null,"2025-01-01","2025-01-01","Neujahrstag",2025]
["",{"$error":"#VALUE!"},{"$error":"#VALUE!"},{"$error":"#VALUE!"},{"$error":"#VALUE!"},null,null,null,null,null,null,null,null,null,null,null,null,{"$error":"#VALUE!"},{"$f":"SUMPRODUCT((B136<=U$45:U$299)*(C136>=U$45:U$299))","v":{"$error":"#VALUE!"}},null,"2025-01-06","2025-01-06","Heilige Drei Könige",2025]
["",{"$error":"#VALUE!"},{"$error":"#VALUE!"},{"$error":"#VALUE!"},{"$error":"#VALUE!"},null,null,null,null,null,null,null,null,null,null,null,null,{"$error":"#VALUE!"},{"$f":"SUMPRODUCT((B137<=U$45:U$299)*(C137>=U$45:U$299))","v":{"$error":"#VALUE!"}},null,"2025-04-21","2025-04-21","Ostermontag",2025]
["",{"$error":"#VALUE!"},{"$error":"#VALUE!"},{"$error":"#VALUE!"},{"$error":"#VALUE!"},null,null,null,null,null,null,null,null,null,null,null,null,{"$error":"#VALUE!"},{"$f":"SUMPRODUCT((B138<=U$45:U$299)*(C138>=U$45:U$299))","v":{"$error":"#VALUE!"}},null,"2025-05-01","2025-05-01","Staatsfeiertag",2025]
["",{"$error":"#VALUE!"},{"$error":"#VALUE!"},{"$error":"#VALUE!"},{"$error":"#VALUE!"},null,null,null,null,null,null,null,null,null,null,null,null,{"$error":"#VALUE!"},{"$f":"SUMPRODUCT((B139<=U$45:U$299)*(C139>=U$45:U$299))","v":{"$error":"#VALUE!"}},null,"2025-05-29","2025-05-29","Christi Himmelfahrt",2025]
["",{"$error":"#VALUE!"},{"$error":"#VALUE!"},{"$error":"#VALUE!"},{"$error":"#VALUE!"},null,null,null,null,null,null,null,null,null,null,null,null,{"$error":"#VALUE!"},{"$f":"SUMPRODUCT((B140<=U$45:U$299)*(C140>=U$45:U$299))","v":{"$error":"#VALUE!"}},null,"2025-06-09","2025-06-09","Pfingstmontag",2025]
["",{"$error":"#VALUE!"},{"$f":"IF(G$24=\"ja\",7-WEEKDAY(B141,2)+B141,MIN(B141+7-WEEKDAY(B141,2),G$35))","v":{"$error":"#VALUE!"}},{"$error":"#VALUE!"},{"$error":"#VALUE!"},null,null,null,null,null,null,null,null,null,null,null,null,{"$f":"C141-B141+IF(WEEKDAY(C141)<>1,1,0)-IF(AND(WEEKDAY(C141,2)>=6,AuswahlSamstag=\"nein\"),1,0)","v":{"$error":"#VALUE!"}},{"$f":"SUMPRODUCT((B141<=U$45:U$299)*(C141>=U$45:U$299))","v":{"$error":"#VALUE!"}},null,{"$f":"IF(AuswahlSamstag=\"ja\",IF(WEEKDAY(V141)=1,\"-\",V141),IF(OR(WEEKDAY(V141)=1,WEEKDAY(V141)=7),\"-\",V141))","v":"2025-06-19"},"2025-06-19","Fronleichnam",2025]
[{"$f":"IF(ISERROR(IF(B142<>\"\",A141+1,0)),\"\",IF(B142<>\"\",A141+1,0))","v":""},{"$error":"#VALUE!"},{"$error":"#VALUE!"},{"$f":"S142","v":{"$error":"#VALUE!"}},{"$error":"#VALUE!"},null,null,null,null,null,null,null,null,null,null,null,null,{"$error":"#VALUE!"},{"$f":"SUMPRODUCT((B142<=U$45:U$299)*(C142>=U$45:U$299))","v":{"$error":"#VALUE!"}},null,"2025-08-15","2025-08-15","Maria Himmelfahrt",2025]
["",{"$f":"IF(C142>=G$35,\"\",B142+7)","v":{"$error":"#VALUE!"}},{"$error":"#VALUE!"},{"$error":"#VALUE!"},{"$error":"#VALUE!"},null,null,null,null,null,null,null,null,null,null,null,null,{"$error":"#VALUE!"},{"$f":"SUMPRODUCT((B143<=U$45:U$299)*(C143>=U$45:U$299))","v":{"$error":"#VALUE!"}},null,"-","2025-10-26","Nationalfeiertag",2025]
["",{"$error":"#VALUE!"},{"$error":"#VALUE!"},{"$error":"#VALUE!"},{"$error":"#VALUE!"},null,null,null,null,null,null,null,null,null,null,null,null,{"$error":"#VALUE!"},{"$f":"SUMPRODUCT((B144<=U$45:U$299)*(C144>=U$45:U$299))","v":{"$error":"#VALUE!"}},null,"-","2025-11-01","Allerheiligen",2025]
["",{"$error":"#VALUE!"},{"$error":"#VALUE!"},{"$error":"#VALUE!"},{"$error":"#VALUE!"},null,null,null,null,null,null,null,null,null,null,null,null,{"$error":"#VALUE!"},{"$f":"SUMPRODUCT((B145<=U$45:U$299)*(C145>=U$45:U$299))","v":{"$error":"#VALUE!"}},null,"2025-12-08","2025-12-08","Maria Empfängnis",2025]
["",{"$error":"#VALUE!"},{"$error":"#VALUE!"},{"$error":"#VALUE!"},{"$error":"#VALUE!"},null,null,null,null,null,null,null,null,null,null,null,null,{"$error":"#VALUE!"},{"$f":"SUMPRODUCT((B146<=U$45:U$299)*(C146>=U$45:U$299))","v":{"$error":"#VALUE!"}},null,"2025-12-24","2025-12-24","unterrichtsfrei",2025]
["",{"$error":"#VALUE!"},{"$error":"#VALUE!"},{"$error":"#VALUE!"},{"$error":"#VALUE!"},null,null,null,null,null,null,null,null,null,null,null,null,{"$error":"#VALUE!"},{"$f":"SUMPRODUCT((B147<=U$45:U$299)*(C147>=U$45:U$299))","v":{"$error":"#VALUE!"}},null,"2025-12-25","2025-12-25","Christtag",2025]
["",{"$error":"#VALUE!"},{"$error":"#VALUE!"},{"$error":"#VALUE!"},{"$error":"#VALUE!"},null,null,null,null,null,null,null,null,null,null,null,null,{"$error":"#VALUE!"},{"$f":"SUMPRODUCT((B148<=U$45:U$299)*(C148>=U$45:U$299))","v":{"$error":"#VALUE!"}},null,"2025-12-26","2025-12-26","Stephanstag",2025]
["",{"$error":"#VALUE!"},{"$error":"#VALUE!"},{"$error":"#VALUE!"},{"$error":"#VALUE!"},null,null,null,null,null,null,null,null,null,null,null,null,{"$error":"#VALUE!"},{"$f":"SUMPRODUCT((B149<=U$45:U$299)*(C149>=U$45:U$299))","v":{"$error":"#VALUE!"}},null,"2025-12-31","2025-12-31","unterrichtsfrei",2025]
["",{"$error":"#VALUE!"},{"$error":"#VALUE!"},{"$error":"#VALUE!"},{"$error":"#VALUE!"},null,null,null,null,null,null,null,null,null,null,null,null,{"$error":"#VALUE!"},{"$f":"SUMPRODUCT((B150<=U$45:U$299)*(C150>=U$45:U$299))","v":{"$error":"#VALUE!"}},null,"2026-01-01","2026-01-01","Neujahr",2026,"ab 2025 eingefügt ab 7.2.2025"]
["",{"$error":"#VALUE!"},{"$error":"#VALUE!"},{"$error":"#VALUE!"},{"$error":"#VALUE!"},null,null,null,null,null,null,null,null,null,null,null,null,{"$error":"#VALUE!"},{"$f":"SUMPRODUCT((B151<=U$45:U$299)*(C151>=U$45:U$299))","v":{"$error":"#VALUE!"}},null,"2026-01-06","2026-01-06","Heilige Drei Könige",2026]
["",{"$error":"#VALUE!"},{"$error":"#VALUE!"},{"$error":"#VALUE!"},{"$error":"#VALUE!"},null,null,null,null,null,null,null,null,null,null,null,null,{"$error":"#VALUE!"},{"$f":"SUMPRODUCT((B152<=U$45:U$299)*(C152>=U$45:U$299))","v":{"$error":"#VALUE!"}},null,"2026-04-06","2026-04-06","Ostermontag",2026]
["",{"$error":"#VALUE!"},{"$error":"#VALUE!"},{"$error":"#VALUE!"},{"$error":"#VALUE!"},null,null,null,null,null,null,null,null,null,null,null,null,{"$error":"#VALUE!"},{"$f":"SUMPRODUCT((B153<=U$45:U$299)*(C153>=U$45:U$299))","v":{"$error":"#VALUE!"}},null,"2026-05-01","2026-05-01","Staatsfeiertag",2026]
["",{"$error":"#VALUE!"},{"$error":"#VALUE!"},{"$error":"#VALUE!"},{"$error":"#VALUE!"},null,null,null,null,null,null,null,null,null,null,null,null,{"$error":"#VALUE!"},{"$f":"SUMPRODUCT((B154<=U$45:U$299)*(C154>=U$45:U$299))","v":{"$error":"#VALUE!"}},null,"2026-05-14","2026-05-14","Christi Himmelfahrt",2026]
["",{"$error":"#VALUE!"},{"$error":"#VALUE!"},{"$error":"#VALUE!"},{"$error":"#VALUE!"},null,null,null,null,null,null,null,null,null,null,null,null,{"$error":"#VALUE!"},{"$f":"SUMPRODUCT((B155<=U$45:U$299)*(C155>=U$45:U$299))","v":{"$error":"#VALUE!"}},null,"2026-05-25","2026-05-25","Pfingstmontag",2026]
["",{"$error":"#VALUE!"},{"$error":"#VALUE!"},{"$error":"#VALUE!"},{"$error":"#VALUE!"},null,null,null,null,null,null,null,null,null,null,null,null,{"$error":"#VALUE!"},{"$f":"SUMPRODUCT((B156<=U$45:U$299)*(C156>=U$45:U$299))","v":{"$error":"#VALUE!"}},null,"2026-06-04","2026-06-04","Fronleichnam",2026]
["",{"$error":"#VALUE!"},{"$error":"#VALUE!"},{"$error":"#VALUE!"},{"$error":"#VALUE!"},null,null,null,null,null,null,null,null,null,null,null,null,{"$error":"#VALUE!"},{"$f":"SUMPRODUCT((B157<=U$45:U$299)*(C157>=U$45:U$299))","v":{"$error":"#VALUE!"}},null,"-","2026-08-15","Mariä Himmelfahrt",2026,"Samstag"]
["",{"$error":"#VALUE!"},{"$error":"#VALUE!"},{"$error":"#VALUE!"},{"$error":"#VALUE!"},null,null,null,null,null,null,null,null,null,null,null,null,{"$error":"#VALUE!"},{"$f":"SUMPRODUCT((B158<=U$45:U$299)*(C158>=U$45:U$299))","v":{"$error":"#VALUE!"}},null,"2026-10-26","2026-10-26","Nationalfeiertag",2026]
["",{"$error":"#VALUE!"},{"$error":"#VALUE!"},{"$error":"#VALUE!"},{"$error":"#VALUE!"},null,null,null,null,null,null,null,null,null,null,null,null,{"$error":"#VALUE!"},{"$f":"SUMPRODUCT((B159<=U$45:U$299)*(C159>=U$45:U$299))","v":{"$error":"#VALUE!"}},null,"-","2026-11-01","Allerheiligen",2026,"Sonntag"]
["",{"$error":"#VALUE!"},{"$error":"#VALUE!"},{"$error":"#VALUE!"},{"$error":"#VALUE!"},null,null,null,null,null,null,null,null,null,null,null,null,{"$error":"#VALUE!"},{"$f":"SUMPRODUCT((B160<=U$45:U$299)*(C160>=U$45:U$299))","v":{"$error":"#VALUE!"}},null,"2026-12-08","2026-12-08","Mariä Empfängnis",2026]
["",{"$error":"#VALUE!"},{"$error":"#VALUE!"},{"$error":"#VALUE!"},{"$error":"#VALUE!"},null,null,null,null,null,null,null,null,null,null,null,null,{"$error":"#VALUE!"},{"$f":"SUMPRODUCT((B161<=U$45:U$299)*(C161>=U$45:U$299))","v":{"$error":"#VALUE!"}},null,"2026-12-24","2026-12-24","Heiligabend",2026]
["",{"$error":"#VALUE!"},{"$error":"#VALUE!"},{"$error":"#VALUE!"},{"$error":"#VALUE!"},null,null,null,null,null,null,null,null,null,null,null,null,{"$error":"#VALUE!"},{"$f":"SUMPRODUCT((B162<=U$45:U$299)*(C162>=U$45:U$299))","v":{"$error":"#VALUE!"}},null,"2026-12-25","2026-12-25","Christtag",2026]
["",{"$error":"#VALUE!"},{"$error":"#VALUE!"},{"$error":"#VALUE!"},{"$error":"#VALUE!"},null,null,null,null,null,null,null,null,null,null,null,null,{"$error":"#VALUE!"},{"$f":"SUMPRODUCT((B163<=U$45:U$299)*(C163>=U$45:U$299))","v":{"$error":"#VALUE!"}},null,"-","2026-12-26","Stefanitag",2026,"Samstag"]
["",{"$error":"#VALUE!"},{"$error":"#VALUE!"},{"$error":"#VALUE!"},{"$error":"#VALUE!"},null,null,null,null,null,null,null,null,null,null,null,null,{"$error":"#VALUE!"},{"$f":"SUMPRODUCT((B164<=U$45:U$299)*(C164>=U$45:U$299))","v":{"$error":"#VALUE!"}},null,"2026-12-31","2026-12-31","Silvester",2026]
["",{"$error":"#VALUE!"},{"$error":"#VALUE!"},{"$error":"#VALUE!"},{"$error":"#VALUE!"},null,null,null,null,null,null,null,null,null,null,null,null,{"$error":"#VALUE!"},{"$f":"SUMPRODUCT((B165<=U$45:U$299)*(C165>=U$45:U$299))","v":{"$error":"#VALUE!"}},null,"2027-01-01","2027-01-01","Neujahr",2027]
["",{"$error":"#VALUE!"},{"$error":"#VALUE!"},{"$error":"#VALUE!"},{"$error":"#VALUE!"},null,null,null,null,null,null,null,null,null,null,null,null,{"$error":"#VALUE!"},{"$f":"SUMPRODUCT((B166<=U$45:U$299)*(C166>=U$45:U$299))","v":{"$error":"#VALUE!"}},null,"2027-01-06","2027-01-06","Heilige Drei Könige",2027]
["",{"$error":"#VALUE!"},{"$error":"#VALUE!"},{"$error":"#VALUE!"},{"$error":"#VALUE!"},null,null,null,null,null,null,null,null,null,null,null,null,{"$error":"#VALUE!"},{"$f":"SUMPRODUCT((B167<=U$45:U$299)*(C167>=U$45:U$299))","v":{"$error":"#VALUE!"}},null,"2027-03-29","2027-03-29","Ostermontag",2027]
["",{"$error":"#VALUE!"},{"$error":"#VALUE!"},{"$error":"#VALUE!"},{"$error":"#VALUE!"},null,null,null,null,null,null,null,null,null,null,null,null,{"$error":"#VALUE!"},{"$f":"SUMPRODUCT((B168<=U$45:U$299)*(C168>=U$45:U$299))","v":{"$error":"#VALUE!"}},null,"-","2027-05-01","Staatsfeiertag",2027,"Samstag"]
["",{"$error":"#VALUE!"},{"$error":"#VALUE!"},{"$error":"#VALUE!"},{"$error":"#VALUE!"},null,null,null,null,null,null,null,null,null,null,null,null,{"$error":"#VALUE!"},{"$f":"SUMPRODUCT((B169<=U$45:U$299)*(C169>=U$45:U$299))","v":{"$error":"#VALUE!"}},null,"2027-05-06","2027-05-06","Christi Himmelfahrt",2027]
["",{"$error":"#VALUE!"},{"$error":"#VALUE!"},{"$error":"#VALUE!"},{"$error":"#VALUE!"},null,null,null,null,null,null,null,null,null,null,null,null,{"$error":"#VALUE!"},{"$f":"SUMPRODUCT((B170<=U$45:U$299)*(C170>=U$45:U$299))","v":{"$error":"#VALUE!"}},null,"2027-05-17","2027-05-17","Pfingstmontag",2027]
["",{"$error":"#VALUE!"},{"$error":"#VALUE!"},{"$error":"#VALUE!"},{"$error":"#VALUE!"},null,null,null,null,null,null,null,null,null,null,null,null,{"$error":"#VALUE!"},{"$f":"SUMPRODUCT((B171<=U$45:U$299)*(C171>=U$45:U$299))","v":{"$error":"#VALUE!"}},null,"2027-05-27","2027-05-27","Fronleichnam",2027]
["",{"$error":"#VALUE!"},{"$error":"#VALUE!"},{"$error":"#VALUE!"},{"$error":"#VALUE!"},null,null,null,null,null,null,null,null,null,null,null,null,{"$error":"#VALUE!"},{"$f":"SUMPRODUCT((B172<=U$45:U$299)*(C172>=U$45:U$299))","v":{"$error":"#VALUE!"}},null,"-","2027-08-15","Mariä Himmelfahrt",2027,"Sonntag"]
["",{"$error":"#VALUE!"},{"$f":"IF(G$24=\"ja\",7-WEEKDAY(B173,2)+B173,MIN(B173+7-WEEKDAY(B173,2),G$35))","v":{"$error":"#VALUE!"}},{"$error":"#VALUE!"},{"$error":"#VALUE!"},null,null,null,null,null,null,null,null,null,null,null,null,{"$f":"C173-B173+IF(WEEKDAY(C173)<>1,1,0)-IF(AND(WEEKDAY(C173,2)>=6,AuswahlSamstag=\"nein\"),1,0)","v":{"$error":"#VALUE!"}},{"$f":"SUMPRODUCT((B173<=U$45:U$299)*(C173>=U$45:U$299))","v":{"$error":"#VALUE!"}},null,{"$f":"IF(AuswahlSamstag=\"ja\",IF(WEEKDAY(V173)=1,\"-\",V173),IF(OR(WEEKDAY(V173)=1,WEEKDAY(V173)=7),\"-\",V173))","v":"2027-10-26"},"2027-10-26","Nationalfeiertag",2027]
[{"$f":"IF(ISERROR(IF(B174<>\"\",A173+1,0)),\"\",IF(B174<>\"\",A173+1,0))","v":""},{"$error":"#VALUE!"},{"$error":"#VALUE!"},{"$f":"S174","v":{"$error":"#VALUE!"}},{"$f":"MAX(R174-D174,0)","v":{"$error":"#VALUE!"}},null,null,null,null,null,null,null,null,null,null,null,null,{"$error":"#VALUE!"},{"$f":"SUMPRODUCT((B174<=U$45:U$299)*(C174>=U$45:U$299))","v":{"$error":"#VALUE!"}},null,"2027-11-01","2027-11-01","Allerheiligen",{"$f":"YEAR(V174)","v":2027}]
["",{"$f":"IF(C174>=G$35,\"\",B174+7)","v":{"$error":"#VALUE!"}},{"$error":"#VALUE!"},{"$error":"#VALUE!"},{"$error":"#VALUE!"},null,null,null,null,null,null,null,null,null,null,null,null,{"$error":"#VALUE!"},{"$f":"SUMPRODUCT((B175<=U$45:U$299)*(C175>=U$45:U$299))","v":{"$error":"#VALUE!"}},null,"2027-12-08","2027-12-08","Mariä Empfängnis",2027]
["",{"$error":"#VALUE!"},{"$error":"#VALUE!"},{"$error":"#VALUE!"},{"$error":"#VALUE!"},null,null,null,null,null,null,null,null,null,null,null,null,{"$error":"#VALUE!"},{"$f":"SUMPRODUCT((B176<=U$45:U$299)*(C176>=U$45:U$299))","v":{"$error":"#VALUE!"}},null,"2027-12-24","2027-12-24","Heiligabend",2027]
["",{"$error":"#VALUE!"},{"$error":"#VALUE!"},{"$error":"#VALUE!"},{"$error":"#VALUE!"},null,null,null,null,null,null,null,null,null,null,null,null,{"$error":"#VALUE!"},{"$f":"SUMPRODUCT((B177<=U$45:U$299)*(C177>=U$45:U$299))","v":{"$error":"#VALUE!"}},null,"-","2027-12-25","Christtag",2027,"Samstag"]
["",{"$error":"#VALUE!"},{"$error":"#VALUE!"},{"$error":"#VALUE!"},{"$error":"#VALUE!"},null,null,null,null,null,null,null,null,null,null,null,null,{"$error":"#VALUE!"},{"$f":"SUMPRODUCT((B178<=U$45:U$299)*(C178>=U$45:U$299))","v":{"$error":"#VALUE!"}},null,"-","2027-12-26","Stefanitag",2027,"Sonntag"]
["",{"$error":"#VALUE!"},{"$error":"#VALUE!"},{"$error":"#VALUE!"},{"$error":"#VALUE!"},null,null,null,null,null,null,null,null,null,null,null,null,{"$error":"#VALUE!"},{"$f":"SUMPRODUCT((B179<=U$45:U$299)*(C179>=U$45:U$299))","v":{"$error":"#VALUE!"}},null,"2027-12-31","2027-12-31","Silvester",2027]
["",{"$error":"#VALUE!"},{"$error":"#VALUE!"},{"$error":"#VALUE!"},{"$error":"#VALUE!"},null,null,null,null,null,null,null,null,null,null,null,null,{"$error":"#VALUE!"},{"$f":"SUMPRODUCT((B180<=U$45:U$299)*(C180>=U$45:U$299))","v":{"$error":"#VALUE!"}},null,"-","2028-01-01","Neujahr",2028,"Samstag"]
["",{"$error":"#VALUE!"},{"$error":"#VALUE!"},{"$error":"#VALUE!"},{"$error":"#VALUE!"},null,null,null,null,null,null,null,null,null,null,null,null,{"$error":"#VALUE!"},{"$f":"SUMPRODUCT((B181<=U$45:U$299)*(C181>=U$45:U$299))","v":{"$error":"#VALUE!"}},null,"2028-01-06","2028-01-06","Heilige Drei Könige",2028]
["",{"$error":"#VALUE!"},{"$error":"#VALUE!"},{"$error":"#VALUE!"},{"$error":"#VALUE!"},null,null,null,null,null,null,null,null,null,null,null,null,{"$error":"#VALUE!"},{"$f":"SUMPRODUCT((B182<=U$45:U$299)*(C182>=U$45:U$299))","v":{"$error":"#VALUE!"}},null,"2028-04-17","2028-04-17","Ostermontag",2028]
["",{"$error":"#VALUE!"},{"$error":"#VALUE!"},{"$error":"#VALUE!"},{"$error":"#VALUE!"},null,null,null,null,null,null,null,null,null,null,null,null,{"$error":"#VALUE!"},{"$f":"SUMPRODUCT((B183<=U$45:U$299)*(C183>=U$45:U$299))","v":{"$error":"#VALUE!"}},null,"2028-05-01","2028-05-01","Staatsfeiertag",2028]
["",{"$error":"#VALUE!"},{"$error":"#VALUE!"},{"$error":"#VALUE!"},{"$error":"#VALUE!"},null,null,null,null,null,null,null,null,null,null,null,null,{"$error":"#VALUE!"},{"$f":"SUMPRODUCT((B184<=U$45:U$299)*(C184>=U$45:U$299))","v":{"$error":"#VALUE!"}},null,"2028-05-25","2028-05-25","Christi Himmelfahrt",2028]
["",{"$error":"#VALUE!"},{"$error":"#VALUE!"},{"$error":"#VALUE!"},{"$error":"#VALUE!"},null,null,null,null,null,null,null,null,null,null,null,null,{"$error":"#VALUE!"},{"$f":"SUMPRODUCT((B185<=U$45:U$299)*(C185>=U$45:U$299))","v":{"$error":"#VALUE!"}},null,"2028-06-05","2028-06-05","Pfingstmontag",2028]
["",{"$error":"#VALUE!"},{"$error":"#VALUE!"},{"$error":"#VALUE!"},{"$error":"#VALUE!"},null,null,null,null,null,null,null,null,null,null,null,null,{"$error":"#VALUE!"},{"$f":"SUMPRODUCT((B186<=U$45:U$299)*(C186>=U$45:U$299))","v":{"$error":"#VALUE!"}},null,"2028-06-15","2028-06-15","Fronleichnam",2028]
["",{"$error":"#VALUE!"},{"$error":"#VALUE!"},{"$error":"#VALUE!"},{"$error":"#VALUE!"},null,null,null,null,null,null,null,null,null,null,null,null,{"$error":"#VALUE!"},{"$f":"SUMPRODUCT((B187<=U$45:U$299)*(C187>=U$45:U$299))","v":{"$error":"#VALUE!"}},null,"2028-08-15","2028-08-15","Mariä Himmelfahrt",2028]
["",{"$error":"#VALUE!"},{"$error":"#VALUE!"},{"$error":"#VALUE!"},{"$error":"#VALUE!"},null,null,null,null,null,null,null,null,null,null,null,null,{"$error":"#VALUE!"},{"$f":"SUMPRODUCT((B188<=U$45:U$299)*(C188>=U$45:U$299))","v":{"$error":"#VALUE!"}},null,"2028-10-26","2028-10-26","Nationalfeiertag",2028]
["",{"$error":"#VALUE!"},{"$error":"#VALUE!"},{"$error":"#VALUE!"},{"$error":"#VALUE!"},null,null,null,null,null,null,null,null,null,null,null,null,{"$error":"#VALUE!"},{"$f":"SUMPRODUCT((B189<=U$45:U$299)*(C189>=U$45:U$299))","v":{"$error":"#VALUE!"}},null,"2028-11-01","2028-11-01","Allerheiligen",2028]
["",{"$error":"#VALUE!"},{"$error":"#VALUE!"},{"$error":"#VALUE!"},{"$error":"#VALUE!"},null,null,null,null,null,null,null,null,null,null,null,null,{"$error":"#VALUE!"},{"$f":"SUMPRODUCT((B190<=U$45:U$299)*(C190>=U$45:U$299))","v":{"$error":"#VALUE!"}},null,"2028-12-08","2028-12-08","Mariä Empfängnis",2028]
["",{"$error":"#VALUE!"},{"$error":"#VALUE!"},{"$error":"#VALUE!"},{"$error":"#VALUE!"},null,null,null,null,null,null,null,null,null,null,null,null,{"$error":"#VALUE!"},{"$f":"SUMPRODUCT((B191<=U$45:U$299)*(C191>=U$45:U$299))","v":{"$error":"#VALUE!"}},null,"-","2028-12-24","Heiligabend",2028,"Sonntag"]
["",{"$error":"#VALUE!"},{"$error":"#VALUE!"},{"$error":"#VALUE!"},{"$error":"#VALUE!"},null,null,null,null,null,null,null,null,null,null,null,null,{"$error":"#VALUE!"},{"$f":"SUMPRODUCT((B192<=U$45:U$299)*(C192>=U$45:U$299))","v":{"$error":"#VALUE!"}},null,"2028-12-25","2028-12-25","Christtag",2028]
["",{"$error":"#VALUE!"},{"$error":"#VALUE!"},{"$error":"#VALUE!"},{"$error":"#VALUE!"},null,null,null,null,null,null,null,null,null,null,null,null,{"$error":"#VALUE!"},{"$f":"SUMPRODUCT((B193<=U$45:U$299)*(C193>=U$45:U$299))","v":{"$error":"#VALUE!"}},null,"2028-12-26","2028-12-26","Stefanitag",2028]
["",{"$error":"#VALUE!"},{"$error":"#VALUE!"},{"$error":"#VALUE!"},{"$error":"#VALUE!"},null,null,null,null,null,null,null,null,null,null,null,null,{"$error":"#VALUE!"},{"$f":"SUMPRODUCT((B194<=U$45:U$299)*(C194>=U$45:U$299))","v":{"$error":"#VALUE!"}},null,"-","2028-12-31","Silvester",2028,"Sonntag"]
["",{"$error":"#VALUE!"},{"$error":"#VALUE!"},{"$error":"#VALUE!"},{"$error":"#VALUE!"},null,null,null,null,null,null,null,null,null,null,null,null,{"$error":"#VALUE!"},{"$f":"SUMPRODUCT((B195<=U$45:U$299)*(C195>=U$45:U$299))","v":{"$error":"#VALUE!"}},null,"2029-01-01","2029-01-01","Neujahr",2029]
["",{"$error":"#VALUE!"},{"$error":"#VALUE!"},{"$error":"#VALUE!"},{"$error":"#VALUE!"},null,null,null,null,null,null,null,null,null,null,null,null,{"$error":"#VALUE!"},{"$f":"SUMPRODUCT((B196<=U$45:U$299)*(C196>=U$45:U$299))","v":{"$error":"#VALUE!"}},null,"-","2029-01-06","Heilige Drei Könige",2029,"Samstag"]
["",{"$error":"#VALUE!"},{"$error":"#VALUE!"},{"$error":"#VALUE!"},{"$error":"#VALUE!"},null,null,null,null,null,null,null,null,null,null,null,null,{"$error":"#VALUE!"},{"$f":"SUMPRODUCT((B197<=U$45:U$299)*(C197>=U$45:U$299))","v":{"$error":"#VALUE!"}},null,"2029-04-02","2029-04-02","Ostermontag",2029]
["",{"$error":"#VALUE!"},{"$error":"#VALUE!"},{"$error":"#VALUE!"},{"$error":"#VALUE!"},null,null,null,null,null,null,null,null,null,null,null,null,{"$error":"#VALUE!"},{"$f":"SUMPRODUCT((B198<=U$45:U$299)*(C198>=U$45:U$299))","v":{"$error":"#VALUE!"}},null,"2029-05-01","2029-05-01","Staatsfeiertag",2029]
["",{"$error":"#VALUE!"},{"$error":"#VALUE!"},{"$error":"#VALUE!"},{"$error":"#VALUE!"},null,null,null,null,null,null,null,null,null,null,null,null,{"$error":"#VALUE!"},{"$f":"SUMPRODUCT((B199<=U$45:U$299)*(C199>=U$45:U$299))","v":{"$error":"#VALUE!"}},null,"2029-05-10","2029-05-10","Christi Himmelfahrt",2029]
["",{"$error":"#VALUE!"},{"$error":"#VALUE!"},{"$error":"#VALUE!"},{"$error":"#VALUE!"},null,null,null,null,null,null,null,null,null,null,null,null,{"$error":"#VALUE!"},{"$f":"SUMPRODUCT((B200<=U$45:U$299)*(C200>=U$45:U$299))","v":{"$error":"#VALUE!"}},null,"2029-05-21","2029-05-21","Pfingstmontag",2029]
["",{"$error":"#VALUE!"},{"$error":"#VALUE!"},{"$error":"#VALUE!"},{"$error":"#VALUE!"},null,null,null,null,null,null,null,null,null,null,null,null,{"$error":"#VALUE!"},{"$f":"SUMPRODUCT((B201<=U$45:U$299)*(C201>=U$45:U$299))","v":{"$error":"#VALUE!"}},null,"2029-05-31","2029-05-31","Fronleichnam",2029]
["",{"$error":"#VALUE!"},{"$error":"#VALUE!"},{"$error":"#VALUE!"},{"$error":"#VALUE!"},null,null,null,null,null,null,null,null,null,null,null,null,{"$error":"#VALUE!"},{"$f":"SUMPRODUCT((B202<=U$45:U$299)*(C202>=U$45:U$299))","v":{"$error":"#VALUE!"}},null,"2029-08-15","2029-08-15","Mariä Himmelfahrt",2029]
["",{"$error":"#VALUE!"},{"$error":"#VALUE!"},{"$error":"#VALUE!"},{"$error":"#VALUE!"},null,null,null,null,null,null,null,null,null,null,null,null,{"$error":"#VALUE!"},{"$f":"SUMPRODUCT((B203<=U$45:U$299)*(C203>=U$45:U$299))","v":{"$error":"#VALUE!"}},null,"2029-10-26","2029-10-26","Nationalfeiertag",2029]
["",{"$error":"#VALUE!"},{"$error":"#VALUE!"},{"$error":"#VALUE!"},{"$error":"#VALUE!"},null,null,null,null,null,null,null,null,null,null,null,null,{"$error":"#VALUE!"},{"$f":"SUMPRODUCT((B204<=U$45:U$299)*(C204>=U$45:U$299))","v":{"$error":"#VALUE!"}},null,"2029-11-01","2029-11-01","Allerheiligen",2029]
["",{"$error":"#VALUE!"},{"$f":"IF(G$24=\"ja\",7-WEEKDAY(B205,2)+B205,MIN(B205+7-WEEKDAY(B205,2),G$35))","v":{"$error":"#VALUE!"}},{"$error":"#VALUE!"},{"$error":"#VALUE!"},null,null,null,null,null,null,null,null,null,null,null,null,{"$f":"C205-B205+IF(WEEKDAY(C205)<>1,1,0)-IF(AND(WEEKDAY(C205,2)>=6,AuswahlSamstag=\"nein\"),1,0)","v":{"$error":"#VALUE!"}},{"$f":"SUMPRODUCT((B205<=U$45:U$299)*(C205>=U$45:U$299))","v":{"$error":"#VALUE!"}},null,{"$f":"IF(AuswahlSamstag=\"ja\",IF(WEEKDAY(V205)=1,\"-\",V205),IF(OR(WEEKDAY(V205)=1,WEEKDAY(V205)=7),\"-\",V205))","v":"-"},"2029-12-08","Mariä Empfängnis",2029,"Samstag"]
[{"$f":"IF(ISERROR(IF(B206<>\"\",A205+1,0)),\"\",IF(B206<>\"\",A205+1,0))","v":""},{"$error":"#VALUE!"},{"$error":"#VALUE!"},{"$f":"S206","v":{"$error":"#VALUE!"}},{"$error":"#VALUE!"},null,null,null,null,null,null,null,null,null,null,null,null,{"$error":"#VALUE!"},{"$f":"SUMPRODUCT((B206<=U$45:U$299)*(C206>=U$45:U$299))","v":{"$error":"#VALUE!"}},null,"2029-12-24","2029-12-24","Heiligabend",2029]
["",{"$f":"IF(C206>=G$35,\"\",B206+7)","v":{"$error":"#VALUE!"}},{"$error":"#VALUE!"},{"$error":"#VALUE!"},{"$error":"#VALUE!"},null,null,null,null,null,null,null,null,null,null,null,null,{"$error":"#VALUE!"},{"$f":"SUMPRODUCT((B207<=U$45:U$299)*(C207>=U$45:U$299))","v":{"$error":"#VALUE!"}},null,"2029-12-25","2029-12-25","Christtag",2029]
["",{"$error":"#VALUE!"},{"$error":"#VALUE!"},{"$error":"#VALUE!"},{"$error":"#VALUE!"},null,null,null,null,null,null,null,null,null,null,null,null,{"$error":"#VALUE!"},{"$f":"SUMPRODUCT((B208<=U$45:U$299)*(C208>=U$45:U$299))","v":{"$error":"#VALUE!"}},null,"2029-12-26","2029-12-26","Stefanitag",2029]
["",{"$error":"#VALUE!"},{"$error":"#VALUE!"},{"$error":"#VALUE!"},{"$error":"#VALUE!"},null,null,null,null,null,null,null,null,null,null,null,null,{"$error":"#VALUE!"},{"$f":"SUMPRODUCT((B209<=U$45:U$299)*(C209>=U$45:U$299))","v":{"$error":"#VALUE!"}},null,"2029-12-31","2029-12-31","Silvester",2029]
["",{"$error":"#VALUE!"},{"$error":"#VALUE!"},{"$error":"#VALUE!"},{"$error":"#VALUE!"},null,null,null,null,null,null,null,null,null,null,null,null,{"$error":"#VALUE!"},{"$f":"SUMPRODUCT((B210<=U$45:U$299)*(C210>=U$45:U$299))","v":{"$error":"#VALUE!"}},null,"2030-01-01","2030-01-01","Neujahr",2030]
["",{"$error":"#VALUE!"},{"$error":"#VALUE!"},{"$error":"#VALUE!"},{"$error":"#VALUE!"},null,null,null,null,null,null,null,null,null,null,null,null,{"$error":"#VALUE!"},{"$f":"SUMPRODUCT((B211<=U$45:U$299)*(C211>=U$45:U$299))","v":{"$error":"#VALUE!"}},null,"-","2030-01-06","Heilige Drei Könige",2030,"Sonntag"]
["",{"$error":"#VALUE!"},{"$error":"#VALUE!"},{"$error":"#VALUE!"},{"$error":"#VALUE!"},null,null,null,null,null,null,null,null,null,null,null,null,{"$error":"#VALUE!"},{"$f":"SUMPRODUCT((B212<=U$45:U$299)*(C212>=U$45:U$299))","v":{"$error":"#VALUE!"}},null,"2030-04-22","2030-04-22","Ostermontag",2030]
["",{"$error":"#VALUE!"},{"$error":"#VALUE!"},{"$error":"#VALUE!"},{"$error":"#VALUE!"},null,null,null,null,null,null,null,null,null,null,null,null,{"$error":"#VALUE!"},{"$f":"SUMPRODUCT((B213<=U$45:U$299)*(C213>=U$45:U$299))","v":{"$error":"#VALUE!"}},null,"2030-05-01","2030-05-01","Staatsfeiertag",2030]
["",{"$error":"#VALUE!"},{"$error":"#VALUE!"},{"$error":"#VALUE!"},{"$error":"#VALUE!"},null,null,null,null,null,null,null,null,null,null,null,null,{"$error":"#VALUE!"},{"$f":"SUMPRODUCT((B214<=U$45:U$299)*(C214>=U$45:U$299))","v":{"$error":"#VALUE!"}},null,"2030-05-30","2030-05-30","Christi Himmelfahrt",2030]
["",{"$error":"#VALUE!"},{"$error":"#VALUE!"},{"$error":"#VALUE!"},{"$error":"#VALUE!"},null,null,null,null,null,null,null,null,null,null,null,null,{"$error":"#VALUE!"},{"$f":"SUMPRODUCT((B215<=U$45:U$299)*(C215>=U$45:U$299))","v":{"$error":"#VALUE!"}},null,"2030-06-10","2030-06-10","Pfingstmontag",2030]
["",{"$error":"#VALUE!"},{"$error":"#VALUE!"},{"$error":"#VALUE!"},{"$error":"#VALUE!"},null,null,null,null,null,null,null,null,null,null,null,null,{"$error":"#VALUE!"},{"$f":"SUMPRODUCT((B216<=U$45:U$299)*(C216>=U$45:U$299))","v":{"$error":"#VALUE!"}},null,"2030-06-20","2030-06-20","Fronleichnam",2030]
["",{"$error":"#VALUE!"},{"$error":"#VALUE!"},{"$error":"#VALUE!"},{"$error":"#VALUE!"},null,null,null,null,null,null,null,null,null,null,null,null,{"$error":"#VALUE!"},{"$f":"SUMPRODUCT((B217<=U$45:U$299)*(C217>=U$45:U$299))","v":{"$error":"#VALUE!"}},null,"2030-08-15","2030-08-15","Mariä Himmelfahrt",2030]
["",{"$error":"#VALUE!"},{"$error":"#VALUE!"},{"$error":"#VALUE!"},{"$error":"#VALUE!"},null,null,null,null,null,null,null,null,null,null,null,null,{"$error":"#VALUE!"},{"$f":"SUMPRODUCT((B218<=U$45:U$299)*(C218>=U$45:U$299))","v":{"$error":"#VALUE!"}},null,"-","2030-10-26","Nationalfeiertag",2030,"Samstag"]
["",{"$error":"#VALUE!"},{"$error":"#VALUE!"},{"$error":"#VALUE!"},{"$error":"#VALUE!"},null,null,null,null,null,null,null,null,null,null,null,null,{"$error":"#VALUE!"},{"$f":"SUMPRODUCT((B219<=U$45:U$299)*(C219>=U$45:U$299))","v":{"$error":"#VALUE!"}},null,"2030-11-01","2030-11-01","Allerheiligen",2030]
["",{"$error":"#VALUE!"},{"$error":"#VALUE!"},{"$error":"#VALUE!"},{"$error":"#VALUE!"},null,null,null,null,null,null,null,null,null,null,null,null,{"$error":"#VALUE!"},{"$f":"SUMPRODUCT((B220<=U$45:U$299)*(C220>=U$45:U$299))","v":{"$error":"#VALUE!"}},null,"-","2030-12-08","Mariä Empfängnis",2030,"Sonntag"]
["",{"$error":"#VALUE!"},{"$error":"#VALUE!"},{"$error":"#VALUE!"},{"$error":"#VALUE!"},null,null,null,null,null,null,null,null,null,null,null,null,{"$error":"#VALUE!"},{"$f":"SUMPRODUCT((B221<=U$45:U$299)*(C221>=U$45:U$299))","v":{"$error":"#VALUE!"}},null,"2030-12-24","2030-12-24","Heiligabend",2030]
["",{"$error":"#VALUE!"},{"$error":"#VALUE!"},{"$error":"#VALUE!"},{"$error":"#VALUE!"},null,null,null,null,null,null,null,null,null,null,null,null,{"$error":"#VALUE!"},{"$f":"SUMPRODUCT((B222<=U$45:U$299)*(C222>=U$45:U$299))","v":{"$error":"#VALUE!"}},null,"2030-12-25","2030-12-25","Christtag",2030]
["",{"$error":"#VALUE!"},{"$error":"#VALUE!"},{"$error":"#VALUE!"},{"$error":"#VALUE!"},null,null,null,null,null,null,null,null,null,null,null,null,{"$error":"#VALUE!"},{"$f":"SUMPRODUCT((B223<=U$45:U$299)*(C223>=U$45:U$299))","v":{"$error":"#VALUE!"}},null,"2030-12-26","2030-12-26","Stefanitag",2030]
["",{"$error":"#VALUE!"},{"$error":"#VALUE!"},{"$error":"#VALUE!"},{"$error":"#VALUE!"},null,null,null,null,null,null,null,null,null,null,null,null,{"$error":"#VALUE!"},{"$f":"SUMPRODUCT((B224<=U$45:U$299)*(C224>=U$45:U$299))","v":{"$error":"#VALUE!"}},null,"2030-12-31","2030-12-31","Silvester",2030]
[null,null,"Summe: ",{"$f":"D43","v":0},{"$f":"E43","v":0},{"$f":"F43","v":0},{"$f":"G43","v":0},{"$f":"H43","v":0},null,null,null,null,null,null,null,null,null,{"$f":"C225-B225+IF(WEEKDAY(C225)<>1,1,0)-IF(AND(WEEKDAY(C225,2)>=6,AuswahlSamstag=\"nein\"),1,0)","v":{"$error":"#VALUE!"}},{"$f":"SUMPRODUCT((B225<=U$45:U$299)*(C225>=U$45:U$299))","v":255},null,{"$f":"IF(AuswahlSamstag=\"ja\",IF(WEEKDAY(V225)=1,\"-\",V225),IF(OR(WEEKDAY(V225)=1,WEEKDAY(V225)=7),\"-\",V225))","v":"2031-01-01"},"2031-01-01","Neujahr",2031]
[null,null,null,null,null,null,null,null,null,null,null,null,null,null,null,null,null,0,{"$f":"SUMPRODUCT((B226<=U$45:U$299)*(C226>=U$45:U$299))","v":0},null,"2031-01-06","2031-01-06","Heilige Drei Könige",2031]
[null,null,null,null,null,null,null,null,null,null,null,null,null,null,null,null,null,0,{"$f":"SUMPRODUCT((B227<=U$45:U$299)*(C227>=U$45:U$299))","v":0},null,"2031-04-14","2031-04-14","Ostermontag",2031]
["Infotage / TeilnehmerInnenauswahl (Angabe in Stunden):",null,null,null,null,null,null,null,null,null,null,null,null,null,null,null,null,0,{"$f":"SUMPRODUCT((B228<=U$45:U$299)*(C228>=U$45:U$299))","v":0},null,"2031-05-01","2031-05-01","Staatsfeiertag",2031]
["SUMME gesamt inkl. Infotage / TeilnehmerInnenauswahl:",null,null,null,null,null,{"$f":"G225+G228","v":0},{"$f":"H225+H228","v":0},null,null,null,null,null,null,null,null,null,0,{"$f":"SUMPRODUCT((B229<=U$45:U$299)*(C229>=U$45:U$299))","v":0},null,"2031-05-22","2031-05-22","Christi Himmelfahrt",2031]
[null,null,null,null,null,null,null,null,null,null,null,null,null,null,null,null,null,0,{"$f":"SUMPRODUCT((B230<=U$45:U$299)*(C230>=U$45:U$299))","v":0},null,"2031-06-02","2031-06-02","Pfingstmontag",2031]
[null,null,null,null,null,"MS GruppentrainerInnen (lt. Blatt Personalkosten): ",{"$f":"Personalkosten!L59","v":0},null,null,null,null,null,{"$f":"IF(G229<>G231,\"Differenz!\",\"\")","v":""},null,null,null,null,0,{"$f":"SUMPRODUCT((B231<=U$45:U$299)*(C231>=U$45:U$299))","v":0},null,"2031-06-12","2031-06-12","Fronleichnam",2031]
[null,null,null,null,null,null,null,null,null,null,null,null,null,null,null,null,null,0,{"$f":"SUMPRODUCT((B232<=U$45:U$299)*(C232>=U$45:U$299))","v":0},null,"2031-08-15","2031-08-15","Mariä Himmelfahrt",2031]
[null,null,null,null,null,null,null,null,null,null,null,null,null,null,null,null,null,0,{"$f":"SUMPRODUCT((B233<=U$45:U$299)*(C233>=U$45:U$299))","v":0},null,"-","2031-10-26","Nationalfeiertag",2031,"Sonntag"]
[null,null,null,null,null,null,null,null,null,null,null,null,null,null,null,null,null,0,{"$f":"SUMPRODUCT((B234<=U$45:U$299)*(C234>=U$45:U$299))","v":0},null,"-","2031-11-01","Allerheiligen",2031,"Samstag"]
[null,null,null,null,null,null,null,null,null,null,null,null,null,null,null,null,null,0,{"$f":"SUMPRODUCT((B235<=U$45:U$299)*(C235>=U$45:U$299))","v":0},null,"2031-12-08","2031-12-08","Mariä Empfängnis",2031]
[null,null,null,null,null,null,null,null,null,null,null,null,null,null,null,null,null,0,{"$f":"SUMPRODUCT((B236<=U$45:U$299)*(C236>=U$45:U$299))","v":0},null,"2031-12-24","2031-12-24","Heiligabend",2031]
[null,null,null,null,null,null,null,null,null,null,null,null,null,null,null,null,null,0,{"$f":"SUMPRODUCT((B237<=U$45:U$299)*(C237>=U$45:U$299))","v":0},null,"2031-12-25","2031-12-25","Christtag",2031]
[null,null,null,null,null,null,null,null,null,null,null,null,null,null,null,null,null,0,{"$f":"SUMPRODUCT((B238<=U$45:U$299)*(C238>=U$45:U$299))","v":0},null,"2031-12-26","2031-12-26","Stefanitag",{"$f":"YEAR(V238)","v":2031}]
[null,null,null,null,null,null,null,null,null,null,null,null,null,null,null,null,null,0,{"$f":"SUMPRODUCT((B239<=U$45:U$299)*(C239>=U$45:U$299))","v":0},null,"2031-12-31","2031-12-31","Silvester",2031]
[null,null,null,null,null,null,null,null,null,null,null,null,null,null,null,null,null,0,{"$f":"SUMPRODUCT((B240<=U$45:U$299)*(C240>=U$45:U$299))","v":0},null,"2032-01-01","2032-01-01","Neujahr",2032]
[null,null,null,null,null,null,null,null,null,null,null,null,null,null,null,null,null,0,{"$f":"SUMPRODUCT((B241<=U$45:U$299)*(C241>=U$45:U$299))","v":0},null,"2032-01-06","2032-01-06","Heilige Drei Könige",2032]
[null,null,null,null,null,null,null,null,null,null,null,null,null,null,null,null,null,0,{"$f":"SUMPRODUCT((B242<=U$45:U$299)*(C242>=U$45:U$299))","v":0},null,"2032-03-29","2032-03-29","Ostermontag",2032]
[null,null,null,null,null,null,null,null,null,null,null,null,null,null,null,null,null,0,{"$f":"SUMPRODUCT((B243<=U$45:U$299)*(C243>=U$45:U$299))","v":0},null,"-","2032-05-01","Staatsfeiertag",2032,"Samstag"]
[null,null,null,null,null,null,null,null,null,null,null,null,null,null,null,null,null,0,{"$f":"SUMPRODUCT((B244<=U$45:U$299)*(C244>=U$45:U$299))","v":0},null,"2032-05-06","2032-05-06","Christi Himmelfahrt",2032]
[null,null,null,null,null,null,null,null,null,null,null,null,null,null,null,null,null,0,{"$f":"SUMPRODUCT((B245<=U$45:U$299)*(C245>=U$45:U$299))","v":0},null,"2032-05-17","2032-05-17","Pfingstmontag",2032]
[null,null,null,null,null,null,null,null,null,null,null,null,null,null,null,null,null,0,{"$f":"SUMPRODUCT((B246<=U$45:U$299)*(C246>=U$45:U$299))","v":0},null,"2032-05-27","2032-05-27","Fronleichnam",2032]
[null,null,null,null,null,null,null,null,null,null,null,null,null,null,null,null,null,0,{"$f":"SUMPRODUCT((B247<=U$45:U$299)*(C247>=U$45:U$299))","v":0},null,"-","2032-08-15","Mariä Himmelfahrt",2032,"Sonntag"]
[null,null,null,null,null,null,null,null,null,null,null,null,null,null,null,null,null,0,{"$f":"SUMPRODUCT((B248<=U$45:U$299)*(C248>=U$45:U$299))","v":0},null,"2032-10-26","2032-10-26","Nationalfeiertag",2032]
[null,null,null,null,null,null,null,null,null,null,null,null,null,null,null,null,null,0,{"$f":"SUMPRODUCT((B249<=U$45:U$299)*(C249>=U$45:U$299))","v":0},null,"2032-11-01","2032-11-01","Allerheiligen",2032]
[null,null,null,null,null,null,null,null,null,null,null,null,null,null,null,null,null,0,{"$f":"SUMPRODUCT((B250<=U$45:U$299)*(C250>=U$45:U$299))","v":0},null,"2032-12-08","2032-12-08","Mariä Empfängnis",2032]
[null,null,null,null,null,null,null,null,null,null,null,null,null,null,null,null,null,0,{"$f":"SUMPRODUCT((B251<=U$45:U$299)*(C251>=U$45:U$299))","v":0},null,"2032-12-24","2032-12-24","Heiligabend",2032]
[null,null,null,null,null,null,null,null,null,null,null,null,null,null,null,null,null,0,{"$f":"SUMPRODUCT((B252<=U$45:U$299)*(C252>=U$45:U$299))","v":0},null,"-","2032-12-25","Christtag",2032,"Samstag"]
[null,null,null,null,null,null,null,null,null,null,null,null,null,null,null,null,null,0,{"$f":"SUMPRODUCT((B253<=U$45:U$299)*(C253>=U$45:U$299))","v":0},null,"-","2032-12-26","Stefanitag",2032,"Sonntag"]
[null,null,null,null,null,null,null,null,null,null,null,null,null,null,null,null,null,0,{"$f":"SUMPRODUCT((B254<=U$45:U$299)*(C254>=U$45:U$299))","v":0},null,"2032-12-31","2032-12-31","Silvester",2032]
[null,null,null,null,null,null,null,null,null,null,null,null,null,null,null,null,null,0,{"$f":"SUMPRODUCT((B255<=U$45:U$299)*(C255>=U$45:U$299))","v":0},null,"-","2033-01-01","Neujahr",2033,"Samstag"]
[null,null,null,null,null,null,null,null,null,null,null,null,null,null,null,null,null,0,{"$f":"SUMPRODUCT((B256<=U$45:U$299)*(C256>=U$45:U$299))","v":0},null,"2033-01-06","2033-01-06","Heilige Drei Könige",2033]
[null,null,null,null,null,null,null,null,null,null,null,null,null,null,null,null,null,0,{"$f":"SUMPRODUCT((B257<=U$45:U$299)*(C257>=U$45:U$299))","v":0},null,"2033-04-18","2033-04-18","Ostermontag",2033]
[null,null,null,null,null,null,null,null,null,null,null,null,null,null,null,null,null,0,{"$f":"SUMPRODUCT((B258<=U$45:U$299)*(C258>=U$45:U$299))","v":0},null,"-","2033-05-01","Staatsfeiertag",2033,"Sonntag"]
[null,null,null,null,null,null,null,null,null,null,null,null,null,null,null,null,null,0,{"$f":"SUMPRODUCT((B259<=U$45:U$299)*(C259>=U$45:U$299))","v":0},null,"2033-05-26","2033-05-26","Christi Himmelfahrt",2033]
[null,null,null,null,null,null,null,null,null,null,null,null,null,null,null,null,null,0,{"$f":"SUMPRODUCT((B260<=U$45:U$299)*(C260>=U$45:U$299))","v":0},null,"2033-06-06","2033-06-06","Pfingstmontag",2033]
[null,null,null,null,null,null,null,null,null,null,null,null,null,null,null,null,null,0,{"$f":"SUMPRODUCT((B261<=U$45:U$299)*(C261>=U$45:U$299))","v":0},null,"2033-06-16","2033-06-16","Fronleichnam",2033]
[null,null,null,null,null,null,null,null,null,null,null,null,null,null,null,null,null,0,{"$f":"SUMPRODUCT((B262<=U$45:U$299)*(C262>=U$45:U$299))","v":0},null,"2033-08-15","2033-08-15","Mariä Himmelfahrt",2033]
[null,null,null,null,null,null,null,null,null,null,null,null,null,null,null,null,null,0,{"$f":"SUMPRODUCT((B263<=U$45:U$299)*(C263>=U$45:U$299))","v":0},null,"2033-10-26","2033-10-26","Nationalfeiertag",2033]
[null,null,null,null,null,null,null,null,null,null,null,null,null,null,null,null,null,0,{"$f":"SUMPRODUCT((B264<=U$45:U$299)*(C264>=U$45:U$299))","v":0},null,"2033-11-01","2033-11-01","Allerheiligen",2033]
[null,null,null,null,null,null,null,null,null,null,null,null,null,null,null,null,null,0,{"$f":"SUMPRODUCT((B265<=U$45:U$299)*(C265>=U$45:U$299))","v":0},null,"2033-12-08","2033-12-08","Mariä Empfängnis",2033]
[null,null,null,null,null,null,null,null,null,null,null,null,null,null,null,null,null,0,{"$f":"SUMPRODUCT((B266<=U$45:U$299)*(C266>=U$45:U$299))","v":0},null,"-","2033-12-24","Heiligabend",2033,"Samstag"]
[null,null,null,null,null,null,null,null,null,null,null,null,null,null,null,null,null,0,{"$f":"SUMPRODUCT((B267<=U$45:U$299)*(C267>=U$45:U$299))","v":0},null,"-","2033-12-25","Christtag",2033,"Sonntag"]
[null,null,null,null,null,null,null,null,null,null,null,null,null,null,null,null,null,0,{"$f":"SUMPRODUCT((B268<=U$45:U$299)*(C268>=U$45:U$299))","v":0},null,"2033-12-26","2033-12-26","Stefanitag",2033]
[null,null,null,null,null,null,null,null,null,null,null,null,null,null,null,null,null,0,{"$f":"SUMPRODUCT((B269<=U$45:U$299)*(C269>=U$45:U$299))","v":0},null,"-","2033-12-31","Silvester",2033,"Samstag"]
[null,null,null,null,null,null,null,null,null,null,null,null,null,null,null,null,null,0,{"$f":"SUMPRODUCT((B270<=U$45:U$299)*(C270>=U$45:U$299))","v":0},null,"-","2034-01-01","Neujahr",2034,"Sonntag"]
[null,null,null,null,null,null,null,null,null,null,null,null,null,null,null,null,null,0,{"$f":"SUMPRODUCT((B271<=U$45:U$299)*(C271>=U$45:U$299))","v":0},null,"2034-01-06","2034-01-06","Heilige Drei Könige",2034]
[null,null,null,null,null,null,null,null,null,null,null,null,null,null,null,null,null,0,{"$f":"SUMPRODUCT((B272<=U$45:U$299)*(C272>=U$45:U$299))","v":0},null,"2034-04-10","2034-04-10","Ostermontag",2034]
[null,null,null,null,null,null,null,null,null,null,null,null,null,null,null,null,null,0,{"$f":"SUMPRODUCT((B273<=U$45:U$299)*(C273>=U$45:U$299))","v":0},null,"2034-05-01","2034-05-01","Staatsfeiertag",2034]
[null,null,null,null,null,null,null,null,null,null,null,null,null,null,null,null,null,0,{"$f":"SUMPRODUCT((B274<=U$45:U$299)*(C274>=U$45:U$299))","v":0},null,"2034-05-18","2034-05-18","Christi Himmelfahrt",2034]
[null,null,null,null,null,null,null,null,null,null,null,null,null,null,null,null,null,0,{"$f":"SUMPRODUCT((B275<=U$45:U$299)*(C275>=U$45:U$299))","v":0},null,"2034-05-29","2034-05-29","Pfingstmontag",2034]
[null,null,null,null,null,null,null,null,null,null,null,null,null,null,null,null,null,0,{"$f":"SUMPRODUCT((B276<=U$45:U$299)*(C276>=U$45:U$299))","v":0},null,"2034-06-08","2034-06-08","Fronleichnam",2034]
[null,null,null,null,null,null,null,null,null,null,null,null,null,null,null,null,null,0,{"$f":"SUMPRODUCT((B277<=U$45:U$299)*(C277>=U$45:U$299))","v":0},null,"2034-08-15","2034-08-15","Mariä Himmelfahrt",2034]
[null,null,null,null,null,null,null,null,null,null,null,null,null,null,null,null,null,0,{"$f":"SUMPRODUCT((B278<=U$45:U$299)*(C278>=U$45:U$299))","v":0},null,"2034-10-26","2034-10-26","Nationalfeiertag",2034]
[null,null,null,null,null,null,null,null,null,null,null,null,null,null,null,null,null,0,{"$f":"SUMPRODUCT((B279<=U$45:U$299)*(C279>=U$45:U$299))","v":0},null,"2034-11-01","2034-11-01","Allerheiligen",2034]
[null,null,null,null,null,null,null,null,null,null,null,null,null,null,null,null,null,0,{"$f":"SUMPRODUCT((B280<=U$45:U$299)*(C280>=U$45:U$299))","v":0},null,"2034-12-08","2034-12-08","Mariä Empfängnis",2034]
[null,null,null,null,null,null,null,null,null,null,null,null,null,null,null,null,null,0,{"$f":"SUMPRODUCT((B281<=U$45:U$299)*(C281>=U$45:U$299))","v":0},null,"-","2034-12-24","Heiligabend",2034,"Sonntag"]
[null,null,null,null,null,null,null,null,null,null,null,null,null,null,null,null,null,0,{"$f":"SUMPRODUCT((B282<=U$45:U$299)*(C282>=U$45:U$299))","v":0},null,"2034-12-25","2034-12-25","Christtag",2034]
[null,null,null,null,null,null,null,null,null,null,null,null,null,null,null,null,null,0,{"$f":"SUMPRODUCT((B283<=U$45:U$299)*(C283>=U$45:U$299))","v":0},null,"2034-12-26","2034-12-26","Stefanitag",2034]
[null,null,null,null,null,null,null,null,null,null,null,null,null,null,null,null,null,0,{"$f":"SUMPRODUCT((B284<=U$45:U$299)*(C284>=U$45:U$299))","v":0},null,"-","2034-12-31","Silvester",2034,"Sonntag"]
[null,null,null,null,null,null,null,null,null,null,null,null,null,null,null,null,null,0,{"$f":"SUMPRODUCT((B285<=U$45:U$299)*(C285>=U$45:U$299))","v":0},null,"2035-01-01","2035-01-01","Neujahr",2035]
[null,null,null,null,null,null,null,null,null,null,null,null,null,null,null,null,null,0,{"$f":"SUMPRODUCT((B286<=U$45:U$299)*(C286>=U$45:U$299))","v":0},null,"-","2035-01-06","Heilige Drei Könige",2035,"Samstag"]
[null,null,null,null,null,null,null,null,null,null,null,null,null,null,null,null,null,0,{"$f":"SUMPRODUCT((B287<=U$45:U$299)*(C287>=U$45:U$299))","v":0},null,"2035-03-26","2035-03-26","Ostermontag",2035]
[null,null,null,null,null,null,null,null,null,null,null,null,null,null,null,null,null,0,{"$f":"SUMPRODUCT((B288<=U$45:U$299)*(C288>=U$45:U$299))","v":0},null,"2035-05-01","2035-05-01","Staatsfeiertag",2035]
[null,null,null,null,null,null,null,null,null,null,null,null,null,null,null,null,null,{"$f":"C289-B289+IF(WEEKDAY(C289)<>1,1,0)-IF(AND(WEEKDAY(C289,2)>=6,AuswahlSamstag=\"nein\"),1,0)","v":0},{"$f":"SUMPRODUCT((B289<=U$45:U$299)*(C289>=U$45:U$299))","v":0},null,{"$f":"IF(AuswahlSamstag=\"ja\",IF(WEEKDAY(V289)=1,\"-\",V289),IF(OR(WEEKDAY(V289)=1,WEEKDAY(V289)=7),\"-\",V289))","v":"2035-05-03"},"2035-05-03","Christi Himmelfahrt",2035]
[null,null,null,null,null,null,null,null,null,null,null,null,null,null,null,null,null,0,{"$f":"SUMPRODUCT((B290<=U$45:U$299)*(C290>=U$45:U$299))","v":0},null,"2035-05-11","2035-05-11","Pfingstmontag",2035]
[null,null,null,null,null,null,null,null,null,null,null,null,null,null,null,null,null,0,{"$f":"SUMPRODUCT((B291<=U$45:U$299)*(C291>=U$45:U$299))","v":0},null,"2035-05-24","2035-05-24","Fronleichnam",2035]
[null,null,null,null,null,null,null,null,null,null,null,null,null,null,null,null,null,0,{"$f":"SUMPRODUCT((B292<=U$45:U$299)*(C292>=U$45:U$299))","v":0},null,"2035-08-15","2035-08-15","Mariä Himmelfahrt",2035]
[null,null,null,null,null,null,null,null,null,null,null,null,null,null,null,null,null,0,{"$f":"SUMPRODUCT((B293<=U$45:U$299)*(C293>=U$45:U$299))","v":0},null,"2035-10-26","2035-10-26","Nationalfeiertag",2035]
[null,null,null,null,null,null,null,null,null,null,null,null,null,null,null,null,null,0,{"$f":"SUMPRODUCT((B294<=U$45:U$299)*(C294>=U$45:U$299))","v":0},null,"2035-11-01","2035-11-01","Allerheiligen",2035]
[null,null,null,null,null,null,null,null,null,null,null,null,null,null,null,null,null,0,{"$f":"SUMPRODUCT((B295<=U$45:U$299)*(C295>=U$45:U$299))","v":0},null,"-","2035-12-08","Mariä Empfängnis",2035,"Samstag"]
[null,null,null,null,null,null,null,null,null,null,null,null,null,null,null,null,null,0,{"$f":"SUMPRODUCT((B296<=U$45:U$299)*(C296>=U$45:U$299))","v":0},null,"2035-12-24","2035-12-24","Heiligabend",2035]
[null,null,null,null,null,null,null,null,null,null,null,null,null,null,null,null,null,0,{"$f":"SUMPRODUCT((B297<=U$45:U$299)*(C297>=U$45:U$299))","v":0},null,"2035-12-25","2035-12-25","Christtag",2035]
[null,null,null,null,null,null,null,null,null,null,null,null,null,null,null,null,null,0,{"$f":"SUMPRODUCT((B298<=U$45:U$299)*(C298>=U$45:U$299))","v":0},null,"2035-12-26","2035-12-26","Stefanitag",2035]
[null,null,null,null,null,null,null,null,null,null,null,null,null,null,null,null,null,0,{"$f":"SUMPRODUCT((B299<=U$45:U$299)*(C299>=U$45:U$299))","v":0},null,"2035-12-31","2035-12-31","Silvester",2035]

{"sheet":"Personalkosten","index":2,"n_rows":67,"n_cols":27,"rows_kept":67,"cut":false,"hidden":false,"merged":[[53,10,53,12],[29,0,29,8],[47,0,47,8],[6,2,6,12],[8,2,8,12],[33,10,33,11],[54,10,54,12],[64,0,64,11],[65,0,65,11],[57,11,57,12],[58,11,58,12],[59,11,59,12],[55,10,55,12]]}
[null,null,null,null,null,null,null,null,null,null,null,null,null,null,null,null,null,null,null,null,null,{"$f":"LARGE(PKErrLNK,COUNTIF(PKErrLNK,\">0\"))","v":{"$error":"#NUM!"}},"tt1","tt4"]
[null,null,null,null,null,null,null,null,null,null,null,null,null,null,null,null,null,null,null,null,null,{"$f":"MAX(PKErrLNK)","v":0},null,{"$f":"VLOOKUP(X1,X14:Y72,2,FALSE)","v":42}]
[]
[null,null,null,null,"       "]
[]
[null,null,null,null,null,null,null,null,null,null,null,null,null,null,null,null,null,null,null,null,null,null,null,5]
[null,"Bieter / Schulungsträger:",{"$f":"IF(Bewerber=0,\"\",Bewerber)","v":""}]
[]
[null,"Bezeichnung der Maßnahme:",{"$f":"IF(Massnahme=0,\"\",Massnahme)","v":""}]
[null,null,null,null,null,null,null,null,null,null,null,null,null,null,null,null,null,null,null,null,null,null,null,null,null,null,96.6]
[]
["MASSNAHMENKOSTEN: DARSTELLUNG DES PERSONALAUFWANDES",null,null,null,null,null,null,null,null,null,null,null,null,null,null,null,null,null,null,null,null,null,null,null,null,null,101.4]
[]
[]
["GruppentrainerInnen"]
[]
[]
[]
[]
["Entlohnung Monatsbrutto:"]
[null,null,null,null,null,null,null,null,null,null,null,null,null,null,null,null,null,null,null,null,null,null,null,1]
["Name","Brutto-\nentgelt \n(evtl. inkl.\nFunktions-\nzulage)","Lohnneben-\nkosten in\nProzent","wöchentl.\nNormal-\narbeitszeit\n(NA)","wöchentl.\nLV/BA","wöchentl. Lehrver-\npflichtung\nSOLL","Anteil der \nLV/BA an der NA in\nProzent",null,null,null,"Anzahl \nder MS","Summe",null,null,null,null,null,null,null,null,null,null,null,2]
["SUMME gesamt:",null,null,null,null,null,null,null,null,null,null,{"$f":"SUM(L24:L25)","v":0},null,null,null,null,null,null,null,null,null,null,null,"tt3",{"$f":"ROW(X24)","v":24},1.0348999999999999]
[null,null,null,null,null,{"$f":"IF(D24<>\"\",(D24*0.65),\"\")","v":""},{"$f":"IF(D24<>\"\",E24/D24,\"\")","v":""},null,null,null,null,{"$f":"IF(B24<>\"\",(B24*(1+C24)/(MAX(E24:F24)*4.34821))*K24,\"\")","v":""},null,null,null,null,null,null,null,{"$f":"B24+C24+D24+E24+H24+I24+K24","v":0},{"$f":"IF(ISERROR(T24),1,0)","v":0},{"$f":"IF(C24>Z$23,ROW(),0)","v":0},{"$f":"Z$23","v":1.0348999999999999},1]
[null,null,null,null,null,{"$f":"IF(D25<>\"\",(D25*0.65),\"\")","v":""},{"$f":"IF(D25<>\"\",E25/D25,\"\")","v":""},null,null,null,null,{"$f":"IF(B25<>\"\",(B25*(1+C25)/(MAX(E25:F25)*4.348))*K25,\"\")","v":""},null,null,null,null,null,null,null,null,null,null,null,999]
[]
["Entlohnung Stundenhonorar:"]
[null,null,null,null,null,null,null,null,null,"Brutto-\nHonorar-\nsatz pro Stunde","Anzahl \nder MS","Summe"]
["SUMME gesamt:",null,null,null,null,null,null,null,null,null,null,{"$f":"SUM(L30:L31)","v":0},null,null,null,null,null,null,null,null,null,null,null,"tt5",{"$f":"ROW(X30)","v":30}]
[null,null,null,null,null,null,null,null,null,null,null,{"$f":"J30*K30","v":0},null,null,null,null,null,null,null,null,null,null,null,1]
[null,null,null,null,null,null,null,null,null,null,null,{"$f":"J31*K31","v":0},null,null,null,null,null,null,null,null,null,null,null,999]
[]
[null,null,null,null,null,null,null,null,null,"SUMME GruppentrainerInnen gesamt: ",{"$f":"ROUND(SUM(K24:K25)+SUM(K30:K31),2)","v":0},{"$f":"ROUND(L23+L29,2)","v":0}]
[null,null,null,null,null,null,null,null,null,"Einheitspreis/MS: ",{"$f":"IF(ISERROR(L33/K33),\"\",(L33/K33))","v":""}]
[]
[]
["EinzeltrainerInnen"]
["Entlohnung Monatsbrutto:"]
[]
["Name","Brutto-\nentgelt \n(evtl. inkl.\nFunktions-\nzulage)","Lohnneben-\nkosten in\nProzent","wöchentl.\nNormal-\narbeitszeit\n(NA)","wöchentl.\nBetreuungs-\nausmaß\n(BA)","wöchentl. BA\n SOLL","Anteil des \nBA an der \nNA in\nProzent",null,null,null,"Anzahl \nder MS","Summe"]
["SUMME gesamt:",null,null,null,null,null,null,null,null,null,null,{"$f":"SUM(L42:L43)","v":0},null,null,null,null,null,null,null,null,null,null,null,"tt4",{"$f":"ROW(X42)","v":42},1.0348999999999999]
[null,null,null,null,null,{"$f":"IF(D42<>\"\",(D42*0.65),\"\")","v":""},{"$f":"IF(D42<>\"\",E42/D42,\"\")","v":""},null,null,null,null,{"$f":"IF(B42<>\"\",(B42*(1+C42)/(MAX(E42:F42)*4.34821))*K42,\"\")","v":""},null,null,null,null,null,null,null,{"$f":"B42+C42+D42+E42+H42+I42+K42","v":0},{"$f":"IF(ISERROR(T42),1,0)","v":0},{"$f":"IF(C42>Z$41,ROW(),0)","v":0},{"$f":"Z$41","v":1.0348999999999999},1]
[null,null,null,null,null,{"$f":"IF(D43<>\"\",(D43*0.65),\"\")","v":""},null,null,null,null,null,{"$f":"IF(B43<>\"\",(B43*(1+C43)/(MAX(E43:F43)*4.348))*K43,\"\")","v":""},null,null,null,null,null,null,null,null,null,null,null,999]
[]
["Entlohnung Stundenhonorar:"]
[null,null,null,null,null,null,null,null,null,"Brutto-\nHonorar-\nsatz pro Stunde","Anzahl \nder MS","Summe"]
["SUMME gesamt:",null,null,null,null,null,null,null,null,null,null,{"$f":"SUM(L48:L49)","v":0},null,null,null,null,null,null,null,null,null,null,null,"tt6",{"$f":"ROW(X48)","v":48}]
[null,null,null,null,null,null,null,null,null,null,null,{"$f":"J48*K48","v":0},null,null,null,null,null,null,null,null,null,null,null,1]
[null,null,null,null,null,null,null,null,null,null,null,{"$f":"J49*K49","v":0},null,null,null,null,null,null,null,null,null,null,null,999]
[]
[]
[]
[]
[null,null,null,null,null,null,null,null,null,"PERSONALKOSTEN gesamt ",{"$f":"K55+K56","v":0}]
[null,null,null,null,null,null,null,null,null,"GruppentrainerInnen ",{"$f":"L33","v":0}]
[null,null,null,null,null,null,null,null,null,"EinzeltrainerInnen ",{"$f":"ROUND(L41+L47,2)","v":0}]
[]
[null,null,null,null,null,null,null,null,null,null,"MASSNAHMENSTUNDEN gesamt ",{"$f":"L59+L60","v":0}]
[null,null,null,null,null,null,null,null,null,null,"MS GruppentrainerInnen ",{"$f":"K33","v":0}]
[null,null,null,null,null,null,null,null,null,null,"MS EinzeltrainerInnen ",{"$f":"ROUND(SUM(K42:K43)+SUM(K48:K49),2)","v":0}]
[]
[]
["Abkürzungen:"]
["NA = wöchentliche Normalarbeitszeit"]
["BA = wöchentliches Betreuungsausmaß"]
["MS = Maßnahmenstunden"]
["LV = Lehrverpflichtung"]

{"sheet":"Sachkosten","index":3,"n_rows":87,"n_cols":14,"rows_kept":87,"cut":false,"hidden":false,"merged":[[110,0,110,8],[111,0,111,8],[85,0,85,8],[86,0,86,8],[87,0,87,8],[88,0,88,8],[89,0,89,8],[90,0,90,8],[102,0,102,8],[103,0,103,8],[108,0,108,8],[109,0,109,8],[100,0,100,8],[101,0,101,8],[104,0,104,8],[105,0,105,8],[106,0,106,8],[107,0,107,8],[97,0,97,8],[98,0,98,8],[99,0,99,8],[96,0,96,8],[78,0,78,2],[81,4,81,5],[81,6,81,7],[79,6,79,7],[80,6,80,7],[81,0,81,2],[84,0,84,8],[94,0,94,8],[95,0,95,8],[91,0,91,8],[92,0,92,8],[93,0,93,8],[77,6,77,7],[77,4,77,5],[52,0,52,7],[58,0,58,7],[72,0,72,7],[68,0,68,7],[70,0,70,7],[66,0,66,7],[48,0,48,7],[50,0,50,7],[56,0,56,7],[64,0,64,7],[60,0,60,7],[62,0,62,7],[44,0,44,7],[36,0,36,7],[46,0,46,7],[40,0,40,7],[42,0,42,7],[38,0,38,7],[34,0,34,7],[6,2,6,8],[8,2,8,8],[20,0,20,7],[22,0,22,7],[28,0,28,7],[30,0,30,7],[24,0,24,7],[26,0,26,7],[32,0,32,7]]}
[null,null,null,null,null,null,null,null,null,"t16"]
[null,null,null,null,null,null,null,null,null,{"$f":"VLOOKUP(J1,J20:K939,2,FALSE)","v":82}]
[]
[]
[]
[]
[null,"Bieter / Schulungsträger:",{"$f":"IF(Bewerber=0,\"\",Bewerber)","v":""}]
[]
[null,"Bezeichnung der Maßnahme:",{"$f":"IF(Massnahme=0,\"\",Massnahme)","v":""}]
[]
[]
["MASSNAHMENKOSTEN: DARSTELLUNG DES SACHAUFWANDES"]
[]
[]
["Sondereinzelkosten"]
[]
[]
[]
[]
["Unterrichtsmaterialien",null,null,null,null,null,null,"gesamt ",{"$f":"ROUND(SUM(I21:I22),2)","v":0},"t1",{"$f":"ROW(J21)","v":21}]
[null,null,null,null,null,null,null,null,null,1]
[null,null,null,null,null,null,null,null,null,999]
[]
["Verbrauchsmaterial",null,null,null,null,null,null,"gesamt ",{"$f":"ROUND(SUM(I25:I26),2)","v":0},"t2",{"$f":"ROW(J25)","v":25}]
[null,null,null,null,null,null,null,null,null,1]
[null,null,null,null,null,null,null,null,null,999]
[]
["Telefon-, Fax-, Internetgebühren",null,null,null,null,null,null,"gesamt ",{"$f":"ROUND(SUM(I29:I30),2)","v":0},"t3",{"$f":"ROW(J29)","v":29}]
[null,null,null,null,null,null,null,null,null,1]
[null,null,null,null,null,null,null,null,null,999]
[]
["Portokosten",null,null,null,null,null,null,"gesamt ",{"$f":"ROUND(SUM(I33:I34),2)","v":0},"t4",{"$f":"ROW(J33)","v":33}]
[null,null,null,null,null,null,null,null,null,1]
[null,null,null,null,null,null,null,null,null,999]
[]
["Prüfungsgebühren, Lizenzen",null,null,null,null,null,null,"gesamt ",{"$f":"ROUND(SUM(I37:I38),2)","v":0},"t5",{"$f":"ROW(J37)","v":37}]
[null,null,null,null,null,null,null,null,null,1]
[null,null,null,null,null,null,null,null,null,999]
[]
["Exkursionsaufwendungen",null,null,null,null,null,null,"gesamt ",{"$f":"ROUND(SUM(I41:I42),2)","v":0},"t6",{"$f":"ROW(J41)","v":41}]
[null,null,null,null,null,null,null,null,null,1]
[null,null,null,null,null,null,null,null,null,999]
[]
["Praktikumsaufwendungen",null,null,null,null,null,null,"gesamt ",{"$f":"ROUND(SUM(I45:I46),2)","v":0},"t7",{"$f":"ROW(J45)","v":45}]
[null,null,null,null,null,null,null,null,null,1]
[null,null,null,null,null,null,null,null,null,999]
[]
["Transportaufwendungen",null,null,null,null,null,null,"gesamt ",{"$f":"ROUND(SUM(I49:I50),2)","v":0},"t8",{"$f":"ROW(J49)","v":49}]
[null,null,null,null,null,null,null,null,null,1]
[null,null,null,null,null,null,null,null,null,999]
[]
["Arbeits- und Schutzkleidung",null,null,null,null,null,null,"gesamt ",{"$f":"ROUND(SUM(I53:I54),2)","v":0},"t9",{"$f":"ROW(J53)","v":53}]
[null,null,null,null,null,null,null,null,null,1]
[null,null,null,null,null,null,null,null,null,999]
[]
["Werbungskosten",null,null,null,null,null,null,"gesamt ",{"$f":"ROUND(SUM(I57:I58),2)","v":0},"t15",{"$f":"ROW(J57)","v":57}]
[null,null,null,null,null,null,null,null,null,1]
[null,null,null,null,null,null,null,null,null,999]
[]
["SubunternehmerInnen",null,null,null,null,null,null,"gesamt ",{"$f":"ROUND(SUM(I61:I62),2)","v":0},"t10",{"$f":"ROW(J61)","v":61}]
[null,null,null,null,null,null,null,null,null,1]
[null,null,null,null,null,null,null,null,null,999]
[]
["SupervisorInnen",null,null,null,null,null,null,"gesamt ",{"$f":"ROUND(SUM(I65:I66),2)","v":0},"t11",{"$f":"ROW(J65)","v":65}]
[null,null,null,null,null,null,null,null,null,1]
[null,null,null,null,null,null,null,null,null,999]
[]
["Reiseaufwendungen",null,null,null,null,null,null,"gesamt ",{"$f":"ROUND(SUM(I69:I70),2)","v":0},"t13",{"$f":"ROW(J69)","v":69}]
[null,null,null,null,null,null,null,null,null,1]
[null,null,null,null,null,null,null,null,null,999]
[]
["Sachmieten, Leasingraten",null,null,null,null,null,null,"gesamt ",{"$f":"ROUND(SUM(I73:I74),2)","v":0},"t14",{"$f":"ROW(J73)","v":73}]
[null,null,null,null,null,null,null,null,null,1]
[null,null,null,null,null,null,null,null,null,999]
[null,null,null,null,null,null,null,"SONDEREINZELKOSTEN gesamt ",{"$f":"I72+I68+I64+I60+I56+I52+I48+I44+I40+I36+I32+I28+I24+I20","v":0}]
[]
["Maschinenstundenpauschale"]
["Geräte-Bezeichnung",null,null,"Grundlage lt. \n\"Allg. Bestimmungen\"","Pauschalsatz",null,"Anzahl MS",null,"Summe"]
[null,null,null,null,null,null,null,"MASCHINENSTUNDENPAUSCHALE gesamt ",{"$f":"SUM(I82:I83)","v":0}]
[null,null,null,null,null,null,"Summe 0,015%",null,{"$f":"SUMIF(E82:E83,0.00015,I82:I83)","v":0},null,null,null,null,1.4999999999999999E-4]
[null,null,null,null,null,null,"Summe 0,030%",null,{"$f":"SUMIF(E82:E83,0.0003,I82:I83)","v":0},"t16",{"$f":"ROW(J82)","v":82},null,null,2.9999999999999997E-4]
[null,null,null,null,null,null,null,null,{"$f":"ROUND(D82*E82*G82,4)","v":0},1]
[null,null,null,null,null,null,null,null,{"$f":"D83*E83*G83","v":0},999]
[]
[]
["Abkürzungen:"]
["MS = Maßnahmenstunden"]

{"sheet":"Gemein+Nebenkosten_Erlöse","index":4,"n_rows":48,"n_cols":11,"rows_kept":48,"cut":false,"hidden":false,"merged":[[73,0,73,8],[66,0,66,8],[67,0,67,8],[68,0,68,8],[69,0,69,8],[70,0,70,8],[71,0,71,8],[72,0,72,8],[65,0,65,8],[59,0,59,8],[51,0,51,8],[52,0,52,8],[53,0,53,8],[58,0,58,8],[54,0,54,8],[55,0,55,8],[56,0,56,8],[6,2,6,8],[8,2,8,8],[21,0,21,7],[64,0,64,8],[60,0,60,8],[61,0,61,8],[38,0,38,7],[24,0,24,7],[28,0,28,7],[47,0,47,8],[48,0,48,8],[49,0,49,8],[50,0,50,8],[63,0,63,8],[57,0,57,8],[62,0,62,8]]}
[null,null,null,null,null,null,null,null,null,"t4"]
[null,null,null,null,null,null,null,null,null,{"$f":"VLOOKUP(J1,J21:K986,2,FALSE)","v":39}]
[]
[]
[]
[]
[null,"Bieter / Schulungsträger:",{"$f":"IF(Bewerber=0,\"\",Bewerber)","v":""}]
[]
[null,"Bezeichnung der Maßnahme:",{"$f":"IF(Massnahme=0,\"\",Massnahme)","v":""}]
[]
[]
["DARSTELLUNG DER GEMEINKOSTEN",null,null,null,null,null,null,null,null,{"$f":"COLUMN()","v":10}]
[]
["Gemeinkostenpauschale (GKP) pro MS"]
[]
[]
[]
["DARSTELLUNG DER MASSNAHMENNEBENKOSTEN"]
[]
["Aufwendungen für ...",null,null,null," "]
["Kinderbetreuung",null,null,null,null,null,null,"gesamt ",{"$f":"ROUND(SUM(I22:I23),2)","v":0},"t1",{"$f":"ROW(J22)","v":22}]
[null,null,null,null,null,null,null,null,null,1]
[null,null,null,null,null,null,null,null,null,999]
["Unterkunft und Verpflegung",null,null,null,null,null,null,"gesamt ",{"$f":"ROUND(SUM(I25:I26),2)","v":0},"t2",{"$f":"ROW(J25)","v":25}]
[null,null,null,null,null,null,null,null,null,1]
[null,null,null,null,null,null,null,null,null,999]
[]
["Ausbildungsbeihilfen",null,null,null,null,null,null,"gesamt ",{"$f":"ROUND(SUM(I29:I30),2)","v":0},"t3",{"$f":"ROW(J29)","v":29}]
[null,null,null,null,null,null,null,null,null,1]
[null,null,null,null,null,null,null,null,null,999]
[]
[null,null,null,null,null,null,null,"MASSNAHMENNEBENKOSTEN gesamt ",{"$f":"I21+I24+I28","v":0}]
[]
[]
["DARSTELLUNG DER KOSTENBETEILIGUNG DRITTER / ERLÖSE"]
[]
[null,null,null,null," "]
["Art der Kostenbeteiligungen/Erlöse",null,null,null,null,null,null,"gesamt ",{"$f":"ROUND(SUM(I39:I41),2)","v":0},"t4",{"$f":"ROW(J39)","v":39}]
[null,null,null,null,null,null,null,null,null,1]
[null,null,null,null,null,null,null,null,null,999]
[null,null,null,null,null,null,null,null,null,999]
[]
[null,null,null,null,null,null,null,"KOSTENBETEILIGUNG/ERLÖSE gesamt ",{"$f":"I38","v":0}]
[]
[]
[]
["Abkürzungen:"]
["MS = Maßnahmenstunde"]

{"sheet":"Durchführungsbericht","index":5,"n_rows":18,"n_cols":14,"rows_kept":18,"cut":false,"hidden":false,"merged":[[6,4,6,11],[11,6,11,12],[17,1,18,11]]}
[null,null,null,null,null,null,null,null,null,null,null,null,null,"t1"]
[null,null,null,null,null,null,null,null,null,null,null,null,null,{"$f":"VLOOKUP(N1,N16:O949,2,FALSE)","v":{"$error":"#N/A"}}]
[]
[]
[]
[]
[null,null,null,"Bieter / Schulungsträger:",{"$f":"IF(Bewerber=0,\"\",Bewerber)","v":""}]
[0]
[null,null,null,"Bezeichnung der Maßnahme:",{"$f":"IF(Massnahme=0,\"\",Massnahme)","v":""}]
[]
[]
[null,"DURCHFÜHRUNGSBERICHT"]
[]
[null,"Bitte begründen Sie hier alle Abweichungen gegenüber der vom AMS bewilligten Kalkulation!"]
[]
[null,"Anmerkungen"]
[]
[null,"Für Zeilenumbruch drücken Sie ALT + ENTER! Um Text aus der Zwischenablage einzufügen, machen Sie zuerst einen Doppelklick in dieses Feld!"]

{"sheet":"Kosten_gesamt","index":6,"n_rows":65,"n_cols":7,"rows_kept":65,"cut":false,"hidden":false,"merged":[[84,0,84,7],[78,0,78,7],[79,0,79,7],[80,0,80,7],[81,0,81,7],[83,0,83,7],[82,0,82,7],[72,0,72,7],[73,0,73,7],[61,6,61,7],[64,6,64,7],[77,0,77,7],[75,0,75,7],[68,0,68,7],[69,0,69,7],[70,0,70,7],[76,0,76,7],[71,0,71,7],[74,0,74,7],[44,6,44,7],[43,6,43,7],[67,0,67,7],[62,6,62,7],[65,0,65,7],[46,6,46,7],[56,6,56,7],[58,6,58,7],[49,6,49,7],[55,6,55,7],[50,6,50,7],[52,6,52,7],[53,6,53,7],[61,0,61,5],[62,0,62,5],[41,6,41,7],[34,6,34,7],[35,6,35,7],[25,6,25,7],[26,6,26,7],[31,6,31,7],[29,6,29,7],[39,6,39,7],[40,6,40,7],[22,6,22,7],[32,6,32,7],[36,6,36,7],[38,6,38,7],[33,6,33,7],[30,6,30,7],[27,6,27,7],[28,6,28,7],[23,6,23,7],[24,6,24,7],[6,2,6,7],[8,2,8,7],[13,0,13,7],[18,6,18,7],[16,6,16,7],[17,6,17,7]]}
[]
[]
[]
[]
[]
[]
[null,"Bieter / Schulungsträger:",{"$f":"IF(Bewerber=0,\"\",Bewerber)","v":""}]
[]
[null,"Bezeichnung der Maßnahme:",{"$f":"IF(Massnahme=0,\"\",Massnahme)","v":""}]
[]
[]
["ENDABRECHNUNG"]
[]
["Maßnahmenkosten:"]
[]
["PERSONALAUFWAND"]
["GruppentrainerInnen",null,null,null,null,null,{"$f":"Personalkosten!K55","v":0}]
["EinzeltrainerInnen",null,null,null,null,null,{"$f":"Personalkosten!K56","v":0}]
["PERSONALAUFWAND GESAMT",null,null,null,null,null,{"$f":"G17+G18","v":0}]
[]
["SACHAUFWAND"]
["Sondereinzelkosten:"]
["1. Unterrichtsmaterialien: Bücher, Skripten, Kopien, sonstige Lehrmaterialien",null,null,null,null,null,{"$f":"Sachkosten!I20","v":0}]
["2. Verbrauchsmaterial: Roh-, Hilfs- und Betriebsstoffe, Verbrauchswerkzeuge",null,null,null,null,null,{"$f":"Sachkosten!I24","v":0}]
["3. Telefon-, Fax-, Internetgebühren",null,null,null,null,null,{"$f":"Sachkosten!I28","v":0}]
["4. Portokosten",null,null,null,null,null,{"$f":"Sachkosten!I32","v":0}]
["5. Prüfungsgebühren (inkl. ECDL Skills Card), Stempelmarken",null,null,null,null,null,{"$f":"Sachkosten!I36","v":0}]
["6. Exkursionsaufwendungen",null,null,null,null,null,{"$f":"Sachkosten!I40","v":0}]
["7. Praktikumsaufwendungen",null,null,null,null,null,{"$f":"Sachkosten!I44","v":0}]
["8. Transportaufwendungen; Fahrtkosten, sofern sie vom Beihilfewerber refundiert werden",null,null,null,null,null,{"$f":"Sachkosten!I48","v":0}]
["9. Arbeits- und Schutzkleidung für TeilnehmerInnen",null,null,null,null,null,{"$f":"Sachkosten!I52","v":0}]
["10. Werbungskosten",null,null,null,null,null,{"$f":"Sachkosten!I56","v":0}]
["11. Aufwendungen für Subunternehmer",null,null,null,null,null,{"$f":"Sachkosten!I60","v":0}]
["12. Honorare für SupervisorInnen",null,null,null,null,null,{"$f":"Sachkosten!I64","v":0}]
["13. Reiseaufwendungen und Diäten des Lehr- und Betreuungspersonals",null,null,null,null,null,{"$f":"Sachkosten!I68","v":0}]
["14. Sachmieten, Leasingraten (keine Raummieten)",null,null,null,null,null,{"$f":"Sachkosten!I72","v":0}]
["Sondereinzelkosten gesamt",null,null,null,null,null,{"$f":"SUM(G23:G36)","v":0}]
["Maschinenstundenpauschale:"]
["1. Maschinen oder maschinelle Anlagen (0,015%)",null,null,null,null,null,{"$f":"SUMIF(Sachkosten!E82:E83,0.00015,Sachkosten!I82:I83)","v":0}]
["2. Computergesteuerte Maschinen, EDV-Geräte und Software (0,03 %)",null,null,null,null,null,{"$f":"SUMIF(Sachkosten!E82:E83,0.0003,Sachkosten!I82:I83)","v":0}]
["Maschinenstundenpauschale gesamt",null,null,null,null,null,{"$f":"Sachkosten!I79","v":0}]
["SACHAUFWAND GESAMT",null,null,null,null,null,{"$f":"G37+G41","v":0}]
[]
["GEMEINKOSTEN",null,null,null,"GKP pro MS","Anzahl GKP-MS"]
["Gemeinkosten",null,null,null,{"$f":"'Gemein+Nebenkosten_Erlöse'!I14","v":0},{"$f":"Zeitplan!H43","v":0},{"$f":"ROUND(E45*F45,2)","v":0}]
[]
["KOSTEN DER MASSNAHME (exkl. Kinderbetreuung, Unterkunft und Ausbildungsbeihilfen)                        ",null,null,null,null,null,{"$f":"G19+G42+G45","v":0}]
[]
["Maßnahmennebenkosten:"]
["AUFWENDUNGEN FÜR KINDERBETREUUNG"]
["Kinderbetreuung",null,null,null,null,null,{"$f":"'Gemein+Nebenkosten_Erlöse'!I21","v":0}]
[]
["AUFWENDUNGEN FÜR UNTERKUNFT UND VERPFLEGUNG"]
["Unterkunft und Verpflegung",null,null,null,null,null,{"$f":"'Gemein+Nebenkosten_Erlöse'!I24","v":0}]
[]
["AUFWENDUNGEN FÜR AUSBILDUNGSBEIHILFEN"]
["Ausbildungsbeihilfe",null,null,null,null,null,{"$f":"'Gemein+Nebenkosten_Erlöse'!I28","v":0}]
[]
["KOSTEN DER MASSNAHME gesamt",null,null,null,null,null,{"$f":"G47+G51+G54+G57","v":0}]
[]
["Kostenbeteiligung Dritter / Erlöse:"]
[]
[]
[]
["KOSTEN DER MASSNAHME für AMS gesamt (exkl. Kostenbeteiligungen/Erlöse)  €",null,null,null,null,null,{"$f":"G59-'Gemein+Nebenkosten_Erlöse'!I43","v":0}]

{"sheet":"Unterschrift","index":7,"n_rows":38,"n_cols":9,"rows_kept":38,"cut":false,"hidden":false,"merged":[[36,0,36,3],[40,0,40,8],[54,0,54,8],[55,0,55,8],[56,0,56,8],[45,0,45,8],[46,0,46,8],[50,0,50,8],[51,0,51,8],[52,0,52,8],[53,0,53,8],[47,0,47,8],[48,0,48,8],[49,0,49,8],[26,0,26,8],[27,0,27,8],[29,0,29,8],[31,0,31,8],[23,0,23,8],[24,0,24,8],[25,0,25,8],[5,2,5,8],[7,2,7,8],[22,0,22,8],[16,0,16,8],[19,0,19,8],[20,0,20,8],[21,0,21,8],[17,0,17,8]]}
[]
[]
[]
[]
[]
[null,"Bieter / Schulungsträger:",{"$f":"IF(Bewerber=0,\"\",Bewerber)","v":""}]
[]
[null,"Bezeichnung der Maßnahme:",{"$f":"IF(Massnahme=0,\"\",Massnahme)","v":""}]
[]
[]
["UNTERSCHRIFT"]
[]
[]
[]
["Einreichung per Post"]
[]
["Bitte reichen Sie bei einer postalischen Übermittlung alle zu dieser Abrechnung gehörigen Teile "]
["zusammengeheftet (kopierfähig) ein!"]
[]
["Ihre Abrechnung gilt nur dann als vollständig eingebracht und wird vom AMS weiter bearbeitet, wenn dieses "]
["Formular rechtsgültig unterzeichnet und mit allen anderen geforderten Unterlagen, insbesondere der "]
["listenmäßigen Aufstellung aller Belege, die die  im Formular angegebenen Summen für einzelne "]
["Aufwandsbereiche und Positionen plausibilisieren, zusammen rechtzeitig dem AMS übermittelt wird."]
[]
["Wenn Sie mehrere zusammengeheftete Abrechnungen für die Durchführung von Maßnahmen im Paket legen,"]
["so genügt es, wenn Sie das dafür vorgesehene Deckblatt (\"BM Abrechnung Paket Deckblatt\") rechtsgültig"]
["zeichnen."]
[]
[]
["Elektronische Einreichung"]
[]
["Die Übermittlung im Wege des sicheren eAMS-Kontos ersetzt die eigenhändige Unterschrift. "]
[]
[]
[]
[]
[]
["Ort, Datum",null,null,null,null,null,null,null,"Rechtsgültige Unterschrift des Bieters"]

{"sheet":"Erläuterungen","index":8,"n_rows":452,"n_cols":8,"rows_kept":452,"cut":false,"hidden":false,"merged":[[17,0,17,7],[437,0,437,7],[450,0,450,7],[451,0,451,7],[429,0,429,7],[422,0,422,7],[389,0,389,7],[341,0,341,7],[409,0,409,7],[89,0,89,7],[170,0,170,7],[43,0,43,7],[10,0,10,7],[12,0,12,7],[13,0,13,7],[2,0,2,7],[11,0,11,7],[5,0,5,7],[6,0,6,7],[7,0,7,7],[8,0,8,7],[9,0,9,7]]}
[]
[]
["ERLÄUTERUNGEN zu Formular \"BM Abrechnung ohne Wettbewerb 04.02\""]
[]
["Inhaltsverzeichnis:"]
["Allgemeines"]
["Deckblatt"]
["Zeitplan"]
["Personalkosten"]
["Sachkosten"]
["Gemein+Nebenkosten Erlöse"]
["Durchführungsbericht"]
["Kosten gesamt"]
["Unterschrift"]
["Drucken / PDF-Umwandlung"]
[]
[]
["Allgemeines"]
[]
["In diesem Kalkulationsformular können nur die Zellen bearbeitet werden, die für Eintragungen durch Bildungs-"]
["träger geöffnet sind. Am besten bewegen Sie sich innerhalb des Formulars mit der TAB-Taste Ihrer Tastatur.  "]
["Sie springen dann von Bearbeitungsfeld zu Bearbeitungsfeld. Um sich rückwärts zu bewegen, benutzen sie "]
["die Tastenkombination Umschalt + TAB."]
[]
[]
["Das Formular ist so aufgebaut, dass Sie einen Eintrag, der mehrmals vorkommt, nur einmal machen   "]
["müssen (z.B. bei Personal- und Sachkosten). Alle anderen Felder gleichen Inhalts werden automatisch "]
["ausgefüllt (z.B. Summen bei Blatt \"Kosten_gesamt\")."]
[]
["Berechnungsformeln sind im Formular integriert, Sie müssen nur die benötigten Basiswerte eingeben."]
[]
["In einigen Feldern ist ein Kommentar eingefügt. Diese Felder erkennen Sie durch das rote Eck am Feld "]
["rechts oben. Den Kommentar können Sie aktivieren, indem Sie mit der Maus in das so gekennzeichnete "]
["Feld fahren."]
[]
["Ist gemäß der Einladung zur Angebotslegung eine Kalkulation im Paket (z.B. die Übertragung mehrerer "]
["gleichartiger Maßnahmen an einen Träger) vorgesehen, so ist für jede dieser Maßnahmen eine eigene"]
["Kalkulation auszufüllen und das Deckblatt für Maßnahmen im Paket (eigenes Dokument mit der  "]
["Bezeichnung: BM Angebot Paket Deckblatt) allen Einzelkalkulationen voranzustellen. Alle Kalkulationen "]
["einschließlich Deckblatt und etwaiger sonstiger Unterlagen wie Maßnahmenkonzepte müssen zusammen- "]
["geheftet oder auf andere Weise kopierfähig verbunden eingereicht werden."]
[]
[]
["Deckblatt"]
[]
["Um die Zuordnung des von Ihnen gestellten Angebots zu ermöglichen, müssen Sie die zuständige AMS-"]
["Landesgeschäftsstelle (Bundesland) eintragen und im Feld für Projekt/Maßnahme die vom AMS in der "]
["Einladung zur Angebotslegung gewählte Bezeichnung des Projekts / der Maßnahme eingeben. "]
[]
[]
[]
["Die Gesamtkosten werden aus dem Blatt \"Kosten_gesamt\" übernommen."]
[]
["Bieter/Schulungsträger"]
[]
["Name/Firma:  "]
["Bezeichnung des Bieters/Schulungsträgers"]
[]
["Adresse:"]
["Firmenadresse, wohin aller das Projekt betreffende Schriftverkehr geschickt werden sollen."]
[]
["Kontaktperson:"]
["Hier ist die Person einzutragen, die dem AMS für Rückfragen zur Abrechnung auf Seiten des Bieters zur "]
["Verfügung steht."]
[]
["Ihre Zahl:"]
["Hier können Sie - falls vorhanden - eine interne Geschäftszahl für den Vorgang eintragen."]
[]
["Maßnahmenort"]
[]
["Adresse:"]
["Hier ist die Anschrift des Schulungsortes einzutragen."]
[]
["RGS:"]
["Hier ist, falls möglich, die RGS, für die die Maßnahme durchgeführt wurde, einzutragen."]
[]
["Maßnahmenbeginn/-ende"]
[]
["Durch Ausfüllen dieser beiden Felder wird automatisch der entsprechende Zeitplan auf dem übernächsten "]
["Blatt aktiviert."]
[]
["Anmerkung:  "]
["Wenn Sie ein bereits ausgefülltes Formular \"BM Abrechnung ohne Wettbewerb\" kopieren und die Einträge"]
["für Maßnahmenbeginn und -ende ändern, passen sich Anzahl und Daten der Maßnahmenwochen im "]
["Tabellenblatt \"Zeitplan\" zwar an die neuen Maßnahmen-Beginn- und -Enddaten an, die alten Einträge in "]
["den übrigen Spalten des  Zeitplans (z.B. freie Tage, MS für GKP-Zuordnung) bleiben aber erhalten und "]
["müssen bei Bedarf von Ihnen angepasst werden."]
[]
[]
["Zeitplan"]
[]
["MN-Beginn, MN-Ende:"]
["Wird vom Blatt \"Deckblatt\" automatisch übernommen."]
[]
["Samstag Unterricht/Samstag kein Unterricht:"]
["Durch Aktivierung des entsprechenden Eintrags wird die Spalte \"MN-Tage\" gesamt automatisch mit dem"]
["richtigen Eintrag versehen (5 oder 6)."]
[]
["Unterrichtsfreie Tage (außer Sa, So):"]
["Hier ist die Anzahl der unterrichtsfreien Tage in der jeweiligen Woche (auch Feiertage) einzutragen. Die "]
["automatisch generierte Anzahl der MN-Tage verändert sich dadurch entsprechend. Ist die ganze Woche z.B. "]
["wegen Ferien frei, so wird die Zeile orange unterlegt."]
[]
["MN-Tage gesamt:"]
["Stellt die Anzahl der Tage der Maßnahme pro Woche dar, an denen die Maßnahme stattfindet, und wird"]
["automatisch generiert."]
[]
["Maßnahmenstunden"]
[]
["MS in dieser Woche:"]
["In dieser Spalte ist der Wert der Normwoche für eine Maßnahmengruppe unter Berücksichtigung der "]
["tatsächlichen Gegebenheiten einzutragen."]
["Beinhaltet die Normwoche 35 Stunden Unterricht an 5 Tagen und fällt in dieser Woche ein Tag "]
["wegen eines Feiertages aus, so ist hier 28 einzutragen. "]
["Beinhaltet die Normwoche 35 Stunden, es werden aber durchgehend fünf Gruppen parallel "]
["unterrichtet, so ist hier ebenfalls 35 einzutragen (und nicht 175!) . "]
["Das tatsächliche Volumen lässt sich aus den Eintragungen der nächsten beiden Spalten (\"MS Lehr-/"]
["Betreuungspersonal\" und \"MS gesamt für GKP-Zuordnung\") ableiten."]
[]
["MS GruppentrainerInnen:"]
["Hier ist die Anzahl der Maßnahmenstunden einzutragen, die die prioritär mit den Maßnahmenteil-"]
["nehmerInnen arbeitenden TrainerInnen in der entsprechenden Maßnahmenwoche leisten. "]
["Darunter sind alle Personen mit unterrichtenden Tätigkeiten in Qualifizierungsmaßnahmen zu verstehen,"]
["aber auch TrainerInnen bei Maßnahmen der Orientierung, aktiven Arbeitssuche und Trainingsmaßnahmen."]
["Nicht einzutragen ist hier das Personal, das parallel dazu als unterstützendes Personal (das sind z.B. Koor-"]
["dinatorInnen, SozialpädagogInnen oder ähnliches) mit den MaßnahmenteilnehmerInnen arbeitet. Dieses "]
["wird nur auf dem Blatt \"Personalkosten\" getrennt erfasst."]
[]
["MS gesamt (für GKP (Gemeinkostenpauschale)-Zuordnung):"]
["Hier sind die Maßnahmenstunden pro Woche einzutragen, für die eine Gemeinkostenpauschale geltend "]
["gemacht wird."]
[]
["Bemerkung:"]
["Hier sind alle Abweichungen von der Norm kurz zu beschreiben."]
[]
["Infotage/TeilnehmerInnenauswahl"]
[]
["Hier sind für alle Vorbereitungsaktivitäten in Zusammenhang mit den zukünftigen Maßnahmenteil-"]
["nehmerInnen, die von Seiten des AMS in der Einladung zur Begehrenstellung beschrieben sind, die ent-"]
["sprechenden Maßnahmenstunden (Personal und GKP) anzuführen. Dies allerdings nur dann, wenn diese"]
["Aktivitäten vor dem eigentlichen Maßnahmenbeginn liegen und daher in obigem Zeitplan nicht erfasst werden"]
[" können."]
[]
[]
["Prüfsumme: MS Gesamt (lt. Blatt Personalkosten)"]
[]
["Dieses Feld übernimmt die entsprechenden Daten aus dem Blatt \"Personalkosten\", sobald dieses ausgefüllt "]
["ist. Es dient zur Kontrolle und zeigt an, wenn unterschiedliche Summendaten auf diesen zwei Blättern "]
["ausgefüllt wurden (Indikatormeldung rot). Die Bearbeitung des Formulars kann auch beendet werden, "]
["ohne dass diese Daten übereinstimmen."]
[]
["Definition 'Maßnahmenstunden':"]
[]
["Jede Bildungsmaßnahme muss durch eine bestimmte Anzahl von Maßnahmenstunden (MS) definiert "]
["werden. Die Maßnahmenstunden werden benötigt, um einerseits die Gemeinkosten des Bildungsträgers in "]
["Form der Gemeinkostenpauschale abzugelten und andererseits Lehr- und Betreuungspersonal den "]
["Maßnahmen zuzuordnen und entsprechend abzugelten. Eine Maßnahmenstunde stellt daher sowohl eine "]
["Planungseinheit für Inhalt und Volumen der Maßnahme als auch eine Be- und Abrechnungseinheit dar und "]
["besteht aus 60 Minuten."]
[]
["Die Anzahl der Maßnahmenstunden ist bei traditionellen Maßnahmen ident mit der Anzahl der Unterrichts-"]
["einheiten, die ein/e TeilnehmerIn benötigt, um an der Maßnahme von Anfang bis zum Ende teilzunehmen. "]
["Sie definieren gleichsam das Volumen des Maßnahmeninhaltes (Lehrstoff oder aber auch Inhalt von "]
["Orientierungs- oder Aktivierungsmaßnahmen). Sie müssen nicht ident sein mit der Anzahl der geleisteten "]
["Unterrichtseinheiten des Lehr- oder Betreuungspersonals, da Doppelbesetzungen durch TrainerInnen keine"]
["Auswirkungen auf die Anzahl der Maßnahmenstunden haben. Ebenso keine Auswirkungen auf die Anzahl "]
["der Maßnahmenstunden haben etwaige Gruppenteilungen oder die Anzahl der TeilnehmerInnen an sich."]
[]
[]
[]
["Personalkosten"]
[]
["Auf diesem Bearbeitungsblatt sind die Personalkosten im Detail aufzuschlüsseln. Es gibt eigene "]
["Bearbeitungstabellen für GruppentrainerInnen und EinzeltrainerInnen, die weiter aufgegliedert sind in "]
["Entlohnung Monatsbrutto und Entlohnung Stundenhonorar. Jede Tabelle ist von vornherein so eingerichtet, "]
["dass eine Bearbeitungszeile vorgegeben ist. Wird eine weitere benötigt, so kann diese durch Anklicken des"]
["roten Buttons in der grau unterlegten Überschriftenzeile angefügt werden. Die Tabelle kann durch Anklicken"]
["jeweils nur um eine Zeile erweitert werden. Wird in diese Zeile nichts eingetragen, so kann diese durch "]
["erneutes Anklicken des roten Buttons wieder entfernt werden."]
[]
["Wird in der Spalte für die Lohnnebenkosten mehr als der maximal anerkennbare Prozentsatz eingetragen, so "]
["erscheint beim Verlassen der Zelle eine Fehlermeldung. Wählen Sie immer \"Abbrechen\", um den Inhalt der "]
["Zelle zu löschen! Danach kann ein neuer Wert eingetragen werden."]
[]
["GruppentrainerInnen"]
[]
["Darunter sind alle Beschäftigten in einer Maßnahme zu verstehen, die mit den MaßnahmenteilnehmerInnen"]
["arbeiten, also TrainerInnen mit unterrichtenden Tätigkeiten in Qualifizierungsmaßnahmen, aber auch "]
["TrainerInnen bei Maßnahmen der Orientierung, der aktiven Arbeitssuche und Trainingsmaßnahmen. "]
["Tragen Sie hier die Kosten aller Maßnahmenstunden ein, die von GruppentrainerInnen durchgeführt werden."]
[]
["Definition 'GruppentrainerInnen':"]
["TrainerInnen, die eine Gruppe von Personen im Klassenverband unterrichten. "]
["Ist ein Trainer / eine Trainerin sowohl als Gruppen- als auch als EinzeltrainerIn in dieser Maßnahme im  "]
["Einsatz, so sind hier nur die Gruppenstunden anzuführen."]
[]
[]
["EinzeltrainerInnen"]
[]
["Unter EinzeltrainerInnen sind Beschäftigte zu verstehen, die als KoordinatorInnen,"]
["SozialpädagogInnen etc. parallel zu den (unterrichtenden oder betreuenden) TrainerInnen mit den"]
["MaßnahmenteilnehmerInnen arbeiten."]
[]
["Definition 'EinzeltrainerInnen': "]
["TrainerInnen, SozialpädagogInnen etc., die eine Einzelperson außerhalb des Klassenverbandes unterrichten, "]
["beraten oder betreuen. Ist ein Trainer / eine Trainerin sowohl als Gruppen- als auch als EinzeltrainerIn in "]
["dieser Maßnahme im Einsatz, so sind hier nur die Einzelstunden anzuführen. "]
[]
[]
[]
["Entlohnung Monatsbrutto"]
[]
["Hier sind alle Beschäftigten zu erfassen, die dieser Maßnahme zugeordnet werden können. Die "]
["Berechnung erfolgt nach der Formel für die Berechnung einer produktiven Leistungsstunde."]
[]
["Name:"]
["Hier ist der Name einzutragen."]
[]
["Bruttoentgelt (evtl. inkl. Funktionszulage):"]
["Hier ist das tatsächliche Bruttoentgelt, eventuell inklusive Funktionszulage, einzutragen, das dem "]
["Beschäftigten bezahlt wird. Ändert sich die Höhe des Bruttoentgeltes während einer Maßnahmenperiode, so "]
["ist mit dem neuen Betrag eine neue Bearbeitungszeile anzulegen."]
[]
[]
["Lohnnebenkosten in Prozent:"]
["Ein höherer Prozentwert als der maximal durch das AMS anerkennbare kann hier nicht eingetragen werden."]
[]
["wöchentliche Normalarbeitszeit (NA):"]
["Hier ist das Ausmaß der mit dem/der DienstnehmerIn vertraglich vereinbarten wöchentlichen Arbeitszeit  "]
["einzutragen (auch Teilzeit-Dienstverhältnisse). Darunter ist nicht nur die Zeit zu verstehen, die der Dienst-"]
["nehmer in dieser spezifischen Maßnahme leistet, sondern generell die Zeit, die er pro Woche seinem Arbeit-"]
["geber zur Verfügung steht."]
[]
["wöchentliche LV/BV:"]
["Hier ist das Ausmaß der mit dem/der DienstnehmerIn vertraglich vereinbarten wöchentlichen Lehr-"]
["verpflichtung oder Betreuungsverpflichtung einzutragen. Unter Lehrverpflichtung ist das Ausmaß der "]
["wöchentlichen Unterrichtsverpflichtung in Maßnahmenstunden zu verstehen. Der Begriff Betreuungs-"]
["verpflichtung bezieht sich auf TrainerInnen, die in Maßnahmen der Orientierung oder der aktiven Arbeitssuche"]
["beschäftigt sind und die keine unterrichtende Tätigkeit im klassischen Sinne ausüben. Das Ausmaß der mit "]
["dem/der DienstnehmerIn vertraglich vereinbarten wöchentlichen Betreuungsverpflichtung ist hier einzutragen."]
[]
["Anteil der LV an der NA in Prozent:"]
["Wird automatisch vom System errechnet. Dient als Kontrollwert, ob die 65%-Grenze der vom AMS anerkenn-"]
["baren Lehr- oder Betreuungsverpflichtung erreicht ist. Ein Unterschreiten der Grenze hat zur Folge, dass das "]
["monatliche Bruttoentgelt nicht im vollen Ausmaß anerkannt wird."]
[]
[]
["Anzahl der MS:"]
["Hier ist die Anzahl der Maßnahmenstunden einzutragen, die während der Dauer der Beschäftigung (vorherige "]
["Spalte) in der Maßnahme erbracht wird."]
[]
["Summe:"]
["Wird automatisch nach der Formel in den allgemeinen Bestimmungen errechnet."]
[]
["Definition 'Lehrverpflichtung' und 'produktive Leistung':"]
["Der Begriff Lehrverpflichtung steht synonym für die \"produktive Leistung\" des Personals. Darunter ist zu"]
["verstehen, wie viele Stunden der vereinbarten wöchentlichen Arbeitszeit ein/e TrainerIn tatsächlich als unter-"]
["richtendes Personal dem Träger zur Verfügung steht und dadurch dem Bildungsträger Einnahmen \"erwirt-"]
["schaften\" kann. Somit unterteilt sich die wöchentliche Arbeitszeit in"]
["                 -  unterrichtende Tätigkeit (= Lehrverpflichtung) und"]
["                 -  unterrichtsvorbereitende Tätigkeit (Stundenvorbereitung, Teambesprechungen, Korrekturen etc.)"]
["Vom Bildungsträger ist für sein Personal (in Summe oder im Einzelfall, wenn hier personenbezogene "]
["Abweichungen auftreten) zu definieren, wie hoch die kalkulierte/durchschnittliche Lehrverpflichtung im "]
["Rahmen der wöchentlichen Arbeitszeit ist."]
[]
["Beispiel:"]
["                 - vereinbarte wöchentliche Arbeitszeit: 38 Stunden"]
["                 - unterrichtende Tätigkeit: 30 Stunden"]
["                 - unterrichtsvorbereitende Tätigkeit: 8 Stunden"]
["Dem Bildungsträger stehen somit 30 Stunden \"produktive Leistung\" zur Verfügung, die er in Maßnahmen "]
["einsetzen kann. Es spielt hierbei keine Rolle, ob diese produktive Leistung in einer Maßnahme oder in "]
["mehreren gleichzeitig erbracht wird. In der Kalkulation ist diese/r MitarbeiterIn immer mit 38 Stunden Arbeits-"]
["zeit und 30 Stunden Lehrverpflichtung anzuführen (auch wenn in einer Maßnahme weniger als 30 Stunden "]
["Unterricht erbracht werden)."]
[]
["Beispiel 1: "]
["TrainerIn mit 38 NA / 30 LV unterrichtet in einer 4-wöchigen Maßnahme 30 Stunden pro Woche"]
["(ausschließlicher Unterricht in einer Maßnahme)."]
[]
["Name","Bruttoentgelt\n (evtl. inkl. Funktions-\nzulage)","Lohnneben-\nkosten in Prozent","wöchentl. Normal-\narbeitszeit (NA)","wöchentl.\nLV/BA","Anteil der \nLV/BA an der NA in Prozent","Anzahl der \nunterrichteten MS","Summe"]
["Trainer A",2000,0,38,30,0.78949999999999998,120,1839.84]
[]
["Beispiel 2: "]
["TrainerIn mit 38 NA / 30 LV unterrichtet in einer 4-wöchigen Maßnahme nur 5 Stunden pro Woche, die "]
["restlichen Stunden werden in einer anderen Maßnahme erbracht (Unterricht in mehreren Maßnahmen, die "]
["getrennt abgerechnet werden)."]
[]
["Name","Bruttoentgelt\n (evtl. inkl. Funktions-\nzulage)","Lohnneben-\nkosten in Prozent","wöchentl. Normal-\narbeitszeit (NA)","wöchentl.\nLV/BA","Anteil der \nLV/BA an der NA in Prozent","Anzahl der \nunterrichteten MS","Summe"]
["Trainer A",2000,0,38,30,0.78949999999999998,20,306.64]
[]
["Eine Lehrverpflichtung von weniger als 65% der vereinbarten wöchentlichen Arbeitszeit des/der Dienst-"]
["nehmerIn wird nicht anerkannt; das heißt, dass bei einer geringeren Lehrverpflichtung die 65%-Grenze in die "]
["Berechnung einbezogen wird."]
[]
["Personal in \"Doppelverwendung\""]
["Wird ein und die selbe Person von einem Bildungsträger für Tätigkeiten mit Vorbereitungszeiten (Lehrperso-"]
["nal), aber auch für Tätigkeiten ohne Vorbereitungszeiten (Betreuungspersonal) eingesetzt, so sind die Kosten"]
["pro Maßnahmenstunde folgendermaßen zu berechnen:"]
["Das monatliche Bruttoentgelt ist gemäß den Tätigkeiten anteilsmäßig aufzuteilen, bei der Lehrtätigkeit ist die "]
["geringere Lehrverpflichtung in Relation zur (verringerten) Arbeitszeit darzustellen, bei den Tätigkeiten ohne "]
["Vorbereitungszeiten ist die Arbeitszeit ident mit der Lehrverpflichtung."]
[]
["Beispiel:"]
["Die wöchentliche Arbeitszeit (40 Stunden) eines Trainers steht zu 50% für Lehrtätigkeit und zu 50% für "]
["Betreuungstätigkeit zur Verfügung. Für Letzteres fallen keine Vorbereitsungszeiten an. Das monatliche Brutto-"]
["entgelt beträgt 2.000,- €. Im Bereich der Lehrtätigkeit stehen 30% der Arbeitszeit für unterrichtsvorbereitende "]
["Tätigkeiten zur Verfügung (LNK wurden zur besseren Anschaulichkeit des Beispieles mit 0% angenommen)."]
["Das Dienstverhältnis ist im Formular sinngemäß folgendermaßen darzustellen:"]
[]
[null,"Bruttoentgelt\n (evtl. inkl. Funktions-\nzulage)","Lohnneben-\nkosten in Prozent","wöchentl. Normal-\narbeitszeit (NA)","wöchentl.\nLV/BA","Anteil der \nLV/BA an der NA in Prozent","Anzahl der \nunterrichteten MS/Monat","Summe"]
["Lehrtätigkeit",1000,0,20,14,0.7,61,1002.05]
["Betreuungst.",1000,0,20,20,1,87,1000.41]
[]
["Besteht die Doppelverwendung aus einem Mix von Lehrtätigkeit und Verwaltungstätigkeit, so ist analog zum "]
["obigen Beispiel vorzugehen, mit dem einen Unterschied, dass die Verwaltungstätigkeiten nicht unter Perso-"]
["nalaufwendungen anzuführen, sondern unter dem Aufwandsbereich Gemeinkosten zu subsumieren sind."]
[]
["Entlohnung Stundenhonorar"]
[]
["Hier sind alle Personen zu erfassen, die auf Basis von Werkverträgen oder als freie DienstnehmerInnen in  "]
["Maßnahmen beschäftigt sind. Im Rahmen der Planung kann diese Personengruppe in Summe erfasst  "]
["werden, vorausgesetzt, es wird allen das selbe Honorar bezahlt. Bei unterschiedlichen Honorarhöhen ist eine  "]
["entsprechende Anzahl von Bearbeitungszeilen anzulegen."]
[]
[]
[]
["Bruttohonorarsatz pro Stunde:"]
["Hier ist der an die HonorartrainerInnen bezahlte Bruttohonorarsatz pro Maßnahmenstunde einzutragen."]
["Er beinhaltet Nettohonorar, DG-Beitrag zur Sozialversicherung, USt. (sofern nicht vorsteuerabzugsberechtigt) "]
["und sonstige Pflichtabgaben und -beiträge."]
[]
["Anzahl der MS:"]
["Hier ist die Anzahl der im Rahmen dieser Maßnahme geplanten/geleisteten Maßnahmenstunden einzutragen."]
[]
["Summen"]
[]
["Die Summen werden aufgrund der Angaben in den Tabellen automatisch errechnet und zum Teil auf das "]
["Blatt \"Kosten_gesamt\" übertragen."]
[]
[]
[]
["Sachkosten"]
[]
["Auf diesem Bearbeitungsblatt sind die Sachkosten im Detail aufzuschlüsseln. Die Tabelle ist von vornherein  "]
["so eingerichtet, dass pro Sondereinzelkostenposition eine Bearbeitungszeile vorgegeben ist. Wird eine "]
["weitere Zeile benötigt, so kann diese durch Anklicken des roten Buttons in der grau unterlegten Überschriften-"]
["zeile angefügt werden. Die Tabelle kann durch Anklicken jeweils nur um eine Zeile erweitert werden. Wird in "]
["werden. Die Tabelle kann durch Anklicken jeweils nur um eine Zeile erweitert werden. Wird in diese Zeile nichts"]
["diese Zeile nichts eingetragen, so kann sie durch erneutes Anklicken des roten Buttons wieder entfernt "]
["werden."]
[]
["Sondereinzelkosten"]
[]
["In der Darstellung können einzelne Positionen kumuliert werden z.B."]
["15 Skripten à € 10,-                                   150,-"]
["Portokosten Jänner 2001                           50,-"]
["3 Supervisionsstunden à € 60,-              180,-"]
["Sie müssen jedoch der vorgesehenen Aufwandsposition in der Tabelle zugeordnet werden."]
[]
[]
["Maschinenstundenpauschale"]
[]
["Geräte-Bezeichnung:"]
["Eine Bezeichnung für die Maschine oder sonstige Schulungsgeräte, für die eine Maschinenstunden-"]
["pauschale verrechnet wird, ist einzutragen. Eine Kumulierung mehrerer Geräte in einer Bearbeitungszeile ist "]
["nur dann zulässig, wenn die Kostenbasis für die Berechnung des Maschinenstundenpauschalsatzes die"]
[" gleiche ist."]
[]
[]
["Grundlage lt. \"Allg. Bestimmungen\":"]
["Hier ist die Kostenbasis für die Berechnung des Maschinenstundenpauschalsatzes einzutragen."]
[]
["Pauschalsatz:"]
["Beim Aktivieren der Zelle öffnet sich ein Drop-Down-Menü, in dem der entsprechende Prozentsatz für die "]
["Abgeltung des Maschinenstundenpauschales auszuwählen ist."]
["Pro Maßnahmenstunde, "]
["in der Maschinen oder maschinelle Anlagen im Einsatz sind, wird eine Pauschale von 0,015%,"]
["für computergesteuerte Maschinen, EDV-Geräte und Software wird eine Pauschale von 0,030% "]
["der ursprünglichen Anschaffungskosten anerkannt."]
[]
["Anzahl der Maßnahmenstunden:"]
["Die Anzahl der Maßnahmenstunden, in denen das Gerät/die Maschine in der Maßnahme im Einsatz ist, ist"]
["anzugeben."]
[]
["Summe:"]
["Die Summe errechnet sich automatisch durch Multiplikation der Einträge."]
[]
[]
[]
["Gemein+Nebenkosten Erlöse"]
[]
["Darstellung der Gemeinkosten"]
[]
["Gemeinkostenpauschale (GKP) pro MS:  "]
["Hier ist der Pauschalsatz für Gemeinkosten, der von Ihnen geltend gemacht wird, einzutragen. Der  Wert wird "]
["automatisch auf das Blatt \"Kosten_gesamt\" übernommen.  Dort wird er mit der auf dem Blatt \"Zeitplan\" "]
["geltend gemachten Anzahl der dem Gemeinkostenpauschale zuordenbaren Stunden verknüpft und die "]
["Summe automatisch dargestellt. "]
[]
["Darstellung der Maßnahmennebenkosten"]
[]
["In die vorgesehene Tabelle sind die entstehenden Kosten einzutragen. Die Positionen können kumuliert"]
["dargestellt werden. Die inhaltliche Nachvollziehbarkeit muss gewährleistet sein."]
["Durch Klicken auf den roten Button können weitere Zeilen eingefügt werden."]
[]
["Darstellung der Kostenbeteiligung Dritter / Erlöse"]
[]
["Geben Sie hier eventuelle Kostenbeteiligungen Dritter bzw. Erlöse ein!"]
[]
["Durchführungsbericht"]
[]
["Im Durchführungsbericht sind"]
[" -     alle abrechnungsrelevanten Abweichungen gegenüber dem ursprünglichen Maßnahmenkonzept und"]
[" -     Optimierungs- bzw. Verbesserungsvorschläge, die sich aus Sicht des Auftragnehmers während der "]
["       Maßnahmendurchführung ergeben haben,"]
["darzustellen."]
[]
["Benutzen Sie dafür das Anmerkungsfeld! Achtung: Über das vorgesehene Feld hinausgehende Texte werden"]
["abgeschnitten. Wenn Sie mehr einfügen, so ist das am Ausdruck bzw. Bildschirm nicht mehr sichtbar. "]
["Verwenden Sie in diesem Falle ein Extrablatt oder -dokument, das Sie zu den Abrechnungsunterlagen"]
["hinzufügen."]
[]
["Kosten gesamt"]
[]
["Alle Daten werden automatisch in dieses Blatt übertragen."]
[]
[]
[]
[]
["Unterschrift"]
[]
["Wenn Sie die Endabrechnung auf dem Postweg senden, dann muss das Formular hier von einer"]
["zeichnungsberechtigten Person handschriftlich gezeichnet werden."]
[]
["Schicken Sie das Formular über das eAMS-Konto, so müssen Sie es nicht unterzeichnen."]
["Durch die elektronische Übermittlung ist die Rechtsgültigkeit hergestellt.\n \n"]
[]
["Drucken / PDF-Umwandlung"]
[]
["Drucken"]
[]
["Wenn Sie das Formular entsprechend ausgefüllt haben und es ausdrucken möchten, um es ans AMS  "]
["zurückzuschicken, verwenden Sie bitte unbedingt den auf jedem Blatt rechts oben befindlichen Button "]
["\"Drucken\", denn nur dann ist gewährleistet, dass die Seiten entsprechend durchgehend nummeriert "]
["sind, dass alle während der Eingabe verborgenen Felder auch gedruckt werden und dass alles vollständig"]
["ausgedruckt wird."]
[]
["Umwandlung in PDF\n\n"]
[]
["Unter EXCEL 2007 (und allen künftigen Versionen): \n\n\n"]
["Beim Klick auf \"Drucken > PDF-Datei erstellen\" wird eine PDF-Datei erstellt und im selben Verzeichnis wie das aktuelle Formular abgelegt. Diese Datei kann so via eAMS versendet werden. In der Mappe „Unterschrift“ werden automatische Einträge („Erstellt am xx.xx.xxxx“ und „Übermittlung via e-AMS Konto“) generiert.\n\nUnter EXCEL 2003 oder älter: \nBeim Klick auf \"Drucken > Datei für PDF-Umwandlung erstellen\" wird eine  EXCEL-Datei erstellt, namentlich gekennzeichnet und im selben Verzeichnis abgelegt wie das geöffnete Formular. Es handelt sich um eine geschützte Kopie, in der nichts mehr verändert werden kann. Auf dem Arbeitsblatt „Unterschrift“ werden automatische Einträge („Erstellt am xx.xx.xxxx“ und „Übermittlung via e-AMS Konto“) generiert.\nDie neue Datei wird unmittelbar geöffnet und man sieht durch eine Art Wasserzeichen am Deckblatt, dass es sich um die Kopie für die PDF-Umwandlung handelt. Diese Datei kann im Anschluss mit jeder geeigneten Software „manuell“ in ein PDF umgewandelt werden, welches per eAMS versendet werden kann. (Der Zwischenschritt ist notwendig, weil die PDF-Funktion nicht automatisch in älteren EXCEL-Versionen vorhanden ist.)"]
["\nHaben Sie bereits eine Druck- oder Umwandlungsdatei erstellt, so wird diese bei einer neuerlichen Umwandlung automatisch ersetzt."]